{"text_format":"3","workbook":"xlsx","n_sheets":3,"sheets":["Data plánu","Agilní plán","Informace"],"not_rendered":{"defined_names":5},"read":"whole","date_system":"1900"}

{"sheet":"Data plánu","index":0,"n_rows":13,"n_cols":7,"rows_kept":13,"merged":[[12,1,12,4]]}
["Pokud chcete vytvořit agilní plán, zadejte do tabulky Data plánu na tomto listu důležité milníky nebo aktivity.\nV buňce B1 je název tohoto listu. \nInformace o používání tohoto listu, včetně pokynů pro čtečky obrazovky, jsou na listu Informace.\nDalší pokyny jsou v dalších buňkách ve sloupci A.","Data agilní časové osy"]
["V buňkách B2 až E2 jsou záhlaví tabulky. Pomocí filtrů v záhlavích můžete tabulku seřadit nebo vyhledat konkrétní položky.\nAgilní plán nejlépe funguje, když je tabulka seřazená ve vzestupném pořadí podle priorita a pak podle milník nebo aktivita.\nV tabulce DataPlánu v buňkách B3 až E12 jsou ukázková data. \nPo dokončení milníku nebo aktivity aktualizujte odpovídající pole Výsledek, aby se výsledky zobrazily na listu Agilní plán. Milníky, které nemají žádný dopad, můžete zvýraznit zadáním výsledku Beze změny.\nDalší pokyn najdete v buňce A13.\n","Cíl","Milník nebo aktivita","Priorita","Výsledek",null,"<-- Seřaďte tabulku vzestupně podle priorita a pak podle milník nebo aktivita."]
[null,"Aktuální","Aktivita 1\nSestavení prototypu","1 – Vysoká",null,null,"<-- Ke každému dokončenému milníku přidejte výsledek. Milníky, které nemají žádný dopad, můžete zvýraznit zadáním výsledku Beze změny."]
[null,"Krátkodobé","Aktivita 2\nUkázka prototypu","1 – Vysoká"]
[null,"Aktuální","Aktivita 6","1 – Vysoká"]
[null,"Budoucí","Aktivita 7\nOutsourcing vývoje pro implementaci první fáze","1 – Vysoká"]
[null,"Dokončeno","Aktivita 9\nSchválení první fáze","1 – Vysoká","Snížení o 10 %"]
[null,"Budoucí","Aktivita 10","2 – Střední"]
[null,"Krátkodobé","Aktivita 8","2 – Střední"]
[null,"Dokončeno","Aktivita 3","3 – Nízká","Beze změny"]
[null,"Budoucí","Aktivita 4","3 – Nízká"]
[null,"Aktuální","Aktivita 5","3 – Nízká"]
["Nové položky můžete přidat tak, že do tabulky nad tento řádek vložíte nové řádky.\nToto je poslední pokyn na tomto listu.","Nové položky můžete přidat tak, že nad tento řádek vložíte nové řádky."]

{"sheet":"Agilní plán","index":1,"n_rows":100,"n_cols":8,"rows_kept":100}
["Na tomto listu je agilní plán zobrazující milníky a aktivity z listu Data plánu. \nV buňce B1 je název. \nVýsledky obsahující slova Beze změny jsou zvýrazněné světle oranžovou barvou (RGB 255, 230, 210).\nOstatní dokončené milníky nebo aktivity jsou zvýrazněné světle zeleně (RGB 237, 251, 219).","Agilní plán"]
["V buňkách B2, D2, F2 a H2 jsou záhlaví grafu. Aktuálně jsou nastavená takto: Dokončeno, Aktuální, Krátkodobé a Budoucí. Úpravou těchto záhlaví můžete změnit hodnoty, které se nabízejí k výběru v poli Cíl v tabulce Data plánu na listu Data plánu.\nBuňky B3 až H20 obsahují milníky a aktivity pro záhlaví v tomto řádku. \nMilníky a aktivity se vytvářejí na listu Data plánu.\nPoložky na tomto listu neupravujte ani neodstraňujte. Pokud chcete aktualizovat obsah tohoto listu, aktualizujte tabulku DataPlánu na listu Data plánu.\nToto je poslední pokyn na tomto listu.","Dokončeno",null,"Aktuální",null,"Krátkodobé",null,"Budoucí"]
[null,{"$f":"IFERROR(INDEX(Aktivita,SMALL(IF(Cíl=$B$2,ROW(Aktivita)-MIN(ROW(Aktivita))+1),ROWS($B$3:B3)))&\" \"&CHAR(10)&(INDEX(Výsledek,SMALL(IF(Cíl=$B$2,ROW(Výsledek)-MIN(ROW(Výsledek))+1),ROWS($B$3:B3))))&CHAR(10),\"\")","v":"Aktivita 9\nSchválení první fáze \nSnížení o 10 %\n"},null,{"$f":"IFERROR(INDEX(Aktivita,SMALL(IF(Cíl=$D$2,ROW(Aktivita)-MIN(ROW(Aktivita))+1),ROWS($B$3:B3)))&CHAR(10),\"\")","v":"Aktivita 1\nSestavení prototypu\n"},null,{"$f":"IFERROR(INDEX(Aktivita,SMALL(IF(Cíl=$F$2,ROW(Aktivita)-MIN(ROW(Aktivita))+1),ROWS($B$3:B3)))&CHAR(10),\"\")","v":"Aktivita 2\nUkázka prototypu\n"},null,{"$f":"IFERROR(INDEX(Aktivita,SMALL(IF(Cíl=$H$2,ROW(Aktivita)-MIN(ROW(Aktivita))+1),ROWS($B$3:B3)))&CHAR(10),\"\")","v":"Aktivita 7\nOutsourcing vývoje pro implementaci první fáze\n"}]
[null,{"$f":"IFERROR(INDEX(Aktivita,SMALL(IF(Cíl=$B$2,ROW(Aktivita)-MIN(ROW(Aktivita))+1),ROWS($B$3:B4)))&\" \"&CHAR(10)&(INDEX(Výsledek,SMALL(IF(Cíl=$B$2,ROW(Výsledek)-MIN(ROW(Výsledek))+1),ROWS($B$3:B4))))&CHAR(10),\"\")","v":"Aktivita 3 \nBeze změny\n"},null,{"$f":"IFERROR(INDEX(Aktivita,SMALL(IF(Cíl=$D$2,ROW(Aktivita)-MIN(ROW(Aktivita))+1),ROWS($B$3:B4)))&CHAR(10),\"\")","v":"Aktivita 6\n"},null,{"$f":"IFERROR(INDEX(Aktivita,SMALL(IF(Cíl=$F$2,ROW(Aktivita)-MIN(ROW(Aktivita))+1),ROWS($B$3:B4)))&CHAR(10),\"\")","v":"Aktivita 8\n"},null,{"$f":"IFERROR(INDEX(Aktivita,SMALL(IF(Cíl=$H$2,ROW(Aktivita)-MIN(ROW(Aktivita))+1),ROWS($B$3:B4)))&CHAR(10),\"\")","v":"Aktivita 10\n"}]
[null,{"$f":"IFERROR(INDEX(Aktivita,SMALL(IF(Cíl=$B$2,ROW(Aktivita)-MIN(ROW(Aktivita))+1),ROWS($B$3:B5)))&\" \"&CHAR(10)&(INDEX(Výsledek,SMALL(IF(Cíl=$B$2,ROW(Výsledek)-MIN(ROW(Výsledek))+1),ROWS($B$3:B5))))&CHAR(10),\"\")","v":""},null,{"$f":"IFERROR(INDEX(Aktivita,SMALL(IF(Cíl=$D$2,ROW(Aktivita)-MIN(ROW(Aktivita))+1),ROWS($B$3:B5)))&CHAR(10),\"\")","v":"Aktivita 5\n"},null,{"$f":"IFERROR(INDEX(Aktivita,SMALL(IF(Cíl=$F$2,ROW(Aktivita)-MIN(ROW(Aktivita))+1),ROWS($B$3:B5)))&CHAR(10),\"\")","v":""},null,{"$f":"IFERROR(INDEX(Aktivita,SMALL(IF(Cíl=$H$2,ROW(Aktivita)-MIN(ROW(Aktivita))+1),ROWS($B$3:B5)))&CHAR(10),\"\")","v":"Aktivita 4\n"}]
[null,{"$f":"IFERROR(INDEX(Aktivita,SMALL(IF(Cíl=$B$2,ROW(Aktivita)-MIN(ROW(Aktivita))+1),ROWS($B$3:B6)))&\" \"&CHAR(10)&(INDEX(Výsledek,SMALL(IF(Cíl=$B$2,ROW(Výsledek)-MIN(ROW(Výsledek))+1),ROWS($B$3:B6))))&CHAR(10),\"\")","v":""},null,{"$f":"IFERROR(INDEX(Aktivita,SMALL(IF(Cíl=$D$2,ROW(Aktivita)-MIN(ROW(Aktivita))+1),ROWS($B$3:B6)))&CHAR(10),\"\")","v":""},null,{"$f":"IFERROR(INDEX(Aktivita,SMALL(IF(Cíl=$F$2,ROW(Aktivita)-MIN(ROW(Aktivita))+1),ROWS($B$3:B6)))&CHAR(10),\"\")","v":""},null,{"$f":"IFERROR(INDEX(Aktivita,SMALL(IF(Cíl=$H$2,ROW(Aktivita)-MIN(ROW(Aktivita))+1),ROWS($B$3:B6)))&CHAR(10),\"\")","v":""}]
[null,{"$f":"IFERROR(INDEX(Aktivita,SMALL(IF(Cíl=$B$2,ROW(Aktivita)-MIN(ROW(Aktivita))+1),ROWS($B$3:B7)))&\" \"&CHAR(10)&(INDEX(Výsledek,SMALL(IF(Cíl=$B$2,ROW(Výsledek)-MIN(ROW(Výsledek))+1),ROWS($B$3:B7))))&CHAR(10),\"\")","v":""},null,{"$f":"IFERROR(INDEX(Aktivita,SMALL(IF(Cíl=$D$2,ROW(Aktivita)-MIN(ROW(Aktivita))+1),ROWS($B$3:B7)))&CHAR(10),\"\")","v":""},null,{"$f":"IFERROR(INDEX(Aktivita,SMALL(IF(Cíl=$F$2,ROW(Aktivita)-MIN(ROW(Aktivita))+1),ROWS($B$3:B7)))&CHAR(10),\"\")","v":""},null,{"$f":"IFERROR(INDEX(Aktivita,SMALL(IF(Cíl=$H$2,ROW(Aktivita)-MIN(ROW(Aktivita))+1),ROWS($B$3:B7)))&CHAR(10),\"\")","v":""}]
[null,{"$f":"IFERROR(INDEX(Aktivita,SMALL(IF(Cíl=$B$2,ROW(Aktivita)-MIN(ROW(Aktivita))+1),ROWS($B$3:B8)))&\" \"&CHAR(10)&(INDEX(Výsledek,SMALL(IF(Cíl=$B$2,ROW(Výsledek)-MIN(ROW(Výsledek))+1),ROWS($B$3:B8))))&CHAR(10),\"\")","v":""},null,{"$f":"IFERROR(INDEX(Aktivita,SMALL(IF(Cíl=$D$2,ROW(Aktivita)-MIN(ROW(Aktivita))+1),ROWS($B$3:B8)))&CHAR(10),\"\")","v":""},null,{"$f":"IFERROR(INDEX(Aktivita,SMALL(IF(Cíl=$F$2,ROW(Aktivita)-MIN(ROW(Aktivita))+1),ROWS($B$3:B8)))&CHAR(10),\"\")","v":""},null,{"$f":"IFERROR(INDEX(Aktivita,SMALL(IF(Cíl=$H$2,ROW(Aktivita)-MIN(ROW(Aktivita))+1),ROWS($B$3:B8)))&CHAR(10),\"\")","v":""}]
[null,{"$f":"IFERROR(INDEX(Aktivita,SMALL(IF(Cíl=$B$2,ROW(Aktivita)-MIN(ROW(Aktivita))+1),ROWS($B$3:B9)))&\" \"&CHAR(10)&(INDEX(Výsledek,SMALL(IF(Cíl=$B$2,ROW(Výsledek)-MIN(ROW(Výsledek))+1),ROWS($B$3:B9))))&CHAR(10),\"\")","v":""},null,{"$f":"IFERROR(INDEX(Aktivita,SMALL(IF(Cíl=$D$2,ROW(Aktivita)-MIN(ROW(Aktivita))+1),ROWS($B$3:B9)))&CHAR(10),\"\")","v":""},null,{"$f":"IFERROR(INDEX(Aktivita,SMALL(IF(Cíl=$F$2,ROW(Aktivita)-MIN(ROW(Aktivita))+1),ROWS($B$3:B9)))&CHAR(10),\"\")","v":""},null,{"$f":"IFERROR(INDEX(Aktivita,SMALL(IF(Cíl=$H$2,ROW(Aktivita)-MIN(ROW(Aktivita))+1),ROWS($B$3:B9)))&CHAR(10),\"\")","v":""}]
[null,{"$f":"IFERROR(INDEX(Aktivita,SMALL(IF(Cíl=$B$2,ROW(Aktivita)-MIN(ROW(Aktivita))+1),ROWS($B$3:B10)))&\" \"&CHAR(10)&(INDEX(Výsledek,SMALL(IF(Cíl=$B$2,ROW(Výsledek)-MIN(ROW(Výsledek))+1),ROWS($B$3:B10))))&CHAR(10),\"\")","v":""},null,{"$f":"IFERROR(INDEX(Aktivita,SMALL(IF(Cíl=$D$2,ROW(Aktivita)-MIN(ROW(Aktivita))+1),ROWS($B$3:B10)))&CHAR(10),\"\")","v":""},null,{"$f":"IFERROR(INDEX(Aktivita,SMALL(IF(Cíl=$F$2,ROW(Aktivita)-MIN(ROW(Aktivita))+1),ROWS($B$3:B10)))&CHAR(10),\"\")","v":""},null,{"$f":"IFERROR(INDEX(Aktivita,SMALL(IF(Cíl=$H$2,ROW(Aktivita)-MIN(ROW(Aktivita))+1),ROWS($B$3:B10)))&CHAR(10),\"\")","v":""}]
[null,{"$f":"IFERROR(INDEX(Aktivita,SMALL(IF(Cíl=$B$2,ROW(Aktivita)-MIN(ROW(Aktivita))+1),ROWS($B$3:B11)))&\" \"&CHAR(10)&(INDEX(Výsledek,SMALL(IF(Cíl=$B$2,ROW(Výsledek)-MIN(ROW(Výsledek))+1),ROWS($B$3:B11))))&CHAR(10),\"\")","v":""},null,{"$f":"IFERROR(INDEX(Aktivita,SMALL(IF(Cíl=$D$2,ROW(Aktivita)-MIN(ROW(Aktivita))+1),ROWS($B$3:B11)))&CHAR(10),\"\")","v":""},null,{"$f":"IFERROR(INDEX(Aktivita,SMALL(IF(Cíl=$F$2,ROW(Aktivita)-MIN(ROW(Aktivita))+1),ROWS($B$3:B11)))&CHAR(10),\"\")","v":""},null,{"$f":"IFERROR(INDEX(Aktivita,SMALL(IF(Cíl=$H$2,ROW(Aktivita)-MIN(ROW(Aktivita))+1),ROWS($B$3:B11)))&CHAR(10),\"\")","v":""}]
[null,{"$f":"IFERROR(INDEX(Aktivita,SMALL(IF(Cíl=$B$2,ROW(Aktivita)-MIN(ROW(Aktivita))+1),ROWS($B$3:B12)))&\" \"&CHAR(10)&(INDEX(Výsledek,SMALL(IF(Cíl=$B$2,ROW(Výsledek)-MIN(ROW(Výsledek))+1),ROWS($B$3:B12))))&CHAR(10),\"\")","v":""},null,{"$f":"IFERROR(INDEX(Aktivita,SMALL(IF(Cíl=$D$2,ROW(Aktivita)-MIN(ROW(Aktivita))+1),ROWS($B$3:B12)))&CHAR(10),\"\")","v":""},null,{"$f":"IFERROR(INDEX(Aktivita,SMALL(IF(Cíl=$F$2,ROW(Aktivita)-MIN(ROW(Aktivita))+1),ROWS($B$3:B12)))&CHAR(10),\"\")","v":""},null,{"$f":"IFERROR(INDEX(Aktivita,SMALL(IF(Cíl=$H$2,ROW(Aktivita)-MIN(ROW(Aktivita))+1),ROWS($B$3:B12)))&CHAR(10),\"\")","v":""}]
[null,{"$f":"IFERROR(INDEX(Aktivita,SMALL(IF(Cíl=$B$2,ROW(Aktivita)-MIN(ROW(Aktivita))+1),ROWS($B$3:B13)))&\" \"&CHAR(10)&(INDEX(Výsledek,SMALL(IF(Cíl=$B$2,ROW(Výsledek)-MIN(ROW(Výsledek))+1),ROWS($B$3:B13))))&CHAR(10),\"\")","v":""},null,{"$f":"IFERROR(INDEX(Aktivita,SMALL(IF(Cíl=$D$2,ROW(Aktivita)-MIN(ROW(Aktivita))+1),ROWS($B$3:B13)))&CHAR(10),\"\")","v":""},null,{"$f":"IFERROR(INDEX(Aktivita,SMALL(IF(Cíl=$F$2,ROW(Aktivita)-MIN(ROW(Aktivita))+1),ROWS($B$3:B13)))&CHAR(10),\"\")","v":""},null,{"$f":"IFERROR(INDEX(Aktivita,SMALL(IF(Cíl=$H$2,ROW(Aktivita)-MIN(ROW(Aktivita))+1),ROWS($B$3:B13)))&CHAR(10),\"\")","v":""}]
[null,{"$f":"IFERROR(INDEX(Aktivita,SMALL(IF(Cíl=$B$2,ROW(Aktivita)-MIN(ROW(Aktivita))+1),ROWS($B$3:B14)))&\" \"&CHAR(10)&(INDEX(Výsledek,SMALL(IF(Cíl=$B$2,ROW(Výsledek)-MIN(ROW(Výsledek))+1),ROWS($B$3:B14))))&CHAR(10),\"\")","v":""},null,{"$f":"IFERROR(INDEX(Aktivita,SMALL(IF(Cíl=$D$2,ROW(Aktivita)-MIN(ROW(Aktivita))+1),ROWS($B$3:B14)))&CHAR(10),\"\")","v":""},null,{"$f":"IFERROR(INDEX(Aktivita,SMALL(IF(Cíl=$F$2,ROW(Aktivita)-MIN(ROW(Aktivita))+1),ROWS($B$3:B14)))&CHAR(10),\"\")","v":""},null,{"$f":"IFERROR(INDEX(Aktivita,SMALL(IF(Cíl=$H$2,ROW(Aktivita)-MIN(ROW(Aktivita))+1),ROWS($B$3:B14)))&CHAR(10),\"\")","v":""}]
[null,{"$f":"IFERROR(INDEX(Aktivita,SMALL(IF(Cíl=$B$2,ROW(Aktivita)-MIN(ROW(Aktivita))+1),ROWS($B$3:B15)))&\" \"&CHAR(10)&(INDEX(Výsledek,SMALL(IF(Cíl=$B$2,ROW(Výsledek)-MIN(ROW(Výsledek))+1),ROWS($B$3:B15))))&CHAR(10),\"\")","v":""},null,{"$f":"IFERROR(INDEX(Aktivita,SMALL(IF(Cíl=$D$2,ROW(Aktivita)-MIN(ROW(Aktivita))+1),ROWS($B$3:B15)))&CHAR(10),\"\")","v":""},null,{"$f":"IFERROR(INDEX(Aktivita,SMALL(IF(Cíl=$F$2,ROW(Aktivita)-MIN(ROW(Aktivita))+1),ROWS($B$3:B15)))&CHAR(10),\"\")","v":""},null,{"$f":"IFERROR(INDEX(Aktivita,SMALL(IF(Cíl=$H$2,ROW(Aktivita)-MIN(ROW(Aktivita))+1),ROWS($B$3:B15)))&CHAR(10),\"\")","v":""}]
[null,{"$f":"IFERROR(INDEX(Aktivita,SMALL(IF(Cíl=$B$2,ROW(Aktivita)-MIN(ROW(Aktivita))+1),ROWS($B$3:B16)))&\" \"&CHAR(10)&(INDEX(Výsledek,SMALL(IF(Cíl=$B$2,ROW(Výsledek)-MIN(ROW(Výsledek))+1),ROWS($B$3:B16))))&CHAR(10),\"\")","v":""},null,{"$f":"IFERROR(INDEX(Aktivita,SMALL(IF(Cíl=$D$2,ROW(Aktivita)-MIN(ROW(Aktivita))+1),ROWS($B$3:B16)))&CHAR(10),\"\")","v":""},null,{"$f":"IFERROR(INDEX(Aktivita,SMALL(IF(Cíl=$F$2,ROW(Aktivita)-MIN(ROW(Aktivita))+1),ROWS($B$3:B16)))&CHAR(10),\"\")","v":""},null,{"$f":"IFERROR(INDEX(Aktivita,SMALL(IF(Cíl=$H$2,ROW(Aktivita)-MIN(ROW(Aktivita))+1),ROWS($B$3:B16)))&CHAR(10),\"\")","v":""}]
[null,{"$f":"IFERROR(INDEX(Aktivita,SMALL(IF(Cíl=$B$2,ROW(Aktivita)-MIN(ROW(Aktivita))+1),ROWS($B$3:B17)))&\" \"&CHAR(10)&(INDEX(Výsledek,SMALL(IF(Cíl=$B$2,ROW(Výsledek)-MIN(ROW(Výsledek))+1),ROWS($B$3:B17))))&CHAR(10),\"\")","v":""},null,{"$f":"IFERROR(INDEX(Aktivita,SMALL(IF(Cíl=$D$2,ROW(Aktivita)-MIN(ROW(Aktivita))+1),ROWS($B$3:B17)))&CHAR(10),\"\")","v":""},null,{"$f":"IFERROR(INDEX(Aktivita,SMALL(IF(Cíl=$F$2,ROW(Aktivita)-MIN(ROW(Aktivita))+1),ROWS($B$3:B17)))&CHAR(10),\"\")","v":""},null,{"$f":"IFERROR(INDEX(Aktivita,SMALL(IF(Cíl=$H$2,ROW(Aktivita)-MIN(ROW(Aktivita))+1),ROWS($B$3:B17)))&CHAR(10),\"\")","v":""}]
[null,{"$f":"IFERROR(INDEX(Aktivita,SMALL(IF(Cíl=$B$2,ROW(Aktivita)-MIN(ROW(Aktivita))+1),ROWS($B$3:B18)))&\" \"&CHAR(10)&(INDEX(Výsledek,SMALL(IF(Cíl=$B$2,ROW(Výsledek)-MIN(ROW(Výsledek))+1),ROWS($B$3:B18))))&CHAR(10),\"\")","v":""},null,{"$f":"IFERROR(INDEX(Aktivita,SMALL(IF(Cíl=$D$2,ROW(Aktivita)-MIN(ROW(Aktivita))+1),ROWS($B$3:B18)))&CHAR(10),\"\")","v":""},null,{"$f":"IFERROR(INDEX(Aktivita,SMALL(IF(Cíl=$F$2,ROW(Aktivita)-MIN(ROW(Aktivita))+1),ROWS($B$3:B18)))&CHAR(10),\"\")","v":""},null,{"$f":"IFERROR(INDEX(Aktivita,SMALL(IF(Cíl=$H$2,ROW(Aktivita)-MIN(ROW(Aktivita))+1),ROWS($B$3:B18)))&CHAR(10),\"\")","v":""}]
[null,{"$f":"IFERROR(INDEX(Aktivita,SMALL(IF(Cíl=$B$2,ROW(Aktivita)-MIN(ROW(Aktivita))+1),ROWS($B$3:B19)))&\" \"&CHAR(10)&(INDEX(Výsledek,SMALL(IF(Cíl=$B$2,ROW(Výsledek)-MIN(ROW(Výsledek))+1),ROWS($B$3:B19))))&CHAR(10),\"\")","v":""},null,{"$f":"IFERROR(INDEX(Aktivita,SMALL(IF(Cíl=$D$2,ROW(Aktivita)-MIN(ROW(Aktivita))+1),ROWS($B$3:B19)))&CHAR(10),\"\")","v":""},null,{"$f":"IFERROR(INDEX(Aktivita,SMALL(IF(Cíl=$F$2,ROW(Aktivita)-MIN(ROW(Aktivita))+1),ROWS($B$3:B19)))&CHAR(10),\"\")","v":""},null,{"$f":"IFERROR(INDEX(Aktivita,SMALL(IF(Cíl=$H$2,ROW(Aktivita)-MIN(ROW(Aktivita))+1),ROWS($B$3:B19)))&CHAR(10),\"\")","v":""}]
[null,{"$f":"IFERROR(INDEX(Aktivita,SMALL(IF(Cíl=$B$2,ROW(Aktivita)-MIN(ROW(Aktivita))+1),ROWS($B$3:B20)))&\" \"&CHAR(10)&(INDEX(Výsledek,SMALL(IF(Cíl=$B$2,ROW(Výsledek)-MIN(ROW(Výsledek))+1),ROWS($B$3:B20))))&CHAR(10),\"\")","v":""},null,{"$f":"IFERROR(INDEX(Aktivita,SMALL(IF(Cíl=$D$2,ROW(Aktivita)-MIN(ROW(Aktivita))+1),ROWS($B$3:B20)))&CHAR(10),\"\")","v":""},null,{"$f":"IFERROR(INDEX(Aktivita,SMALL(IF(Cíl=$F$2,ROW(Aktivita)-MIN(ROW(Aktivita))+1),ROWS($B$3:B20)))&CHAR(10),\"\")","v":""},null,{"$f":"IFERROR(INDEX(Aktivita,SMALL(IF(Cíl=$H$2,ROW(Aktivita)-MIN(ROW(Aktivita))+1),ROWS($B$3:B20)))&CHAR(10),\"\")","v":""}]
[null,{"$f":"IFERROR(INDEX(Aktivita,SMALL(IF(Cíl=$B$2,ROW(Aktivita)-MIN(ROW(Aktivita))+1),ROWS($B$3:B21)))&\" \"&CHAR(10)&(INDEX(Výsledek,SMALL(IF(Cíl=$B$2,ROW(Výsledek)-MIN(ROW(Výsledek))+1),ROWS($B$3:B21))))&CHAR(10),\"\")","v":""},null,{"$f":"IFERROR(INDEX(Aktivita,SMALL(IF(Cíl=$D$2,ROW(Aktivita)-MIN(ROW(Aktivita))+1),ROWS($B$3:B21)))&CHAR(10),\"\")","v":""},null,{"$f":"IFERROR(INDEX(Aktivita,SMALL(IF(Cíl=$F$2,ROW(Aktivita)-MIN(ROW(Aktivita))+1),ROWS($B$3:B21)))&CHAR(10),\"\")","v":""},null,{"$f":"IFERROR(INDEX(Aktivita,SMALL(IF(Cíl=$H$2,ROW(Aktivita)-MIN(ROW(Aktivita))+1),ROWS($B$3:B21)))&CHAR(10),\"\")","v":""}]
[null,{"$f":"IFERROR(INDEX(Aktivita,SMALL(IF(Cíl=$B$2,ROW(Aktivita)-MIN(ROW(Aktivita))+1),ROWS($B$3:B22)))&\" \"&CHAR(10)&(INDEX(Výsledek,SMALL(IF(Cíl=$B$2,ROW(Výsledek)-MIN(ROW(Výsledek))+1),ROWS($B$3:B22))))&CHAR(10),\"\")","v":""},null,{"$f":"IFERROR(INDEX(Aktivita,SMALL(IF(Cíl=$D$2,ROW(Aktivita)-MIN(ROW(Aktivita))+1),ROWS($B$3:B22)))&CHAR(10),\"\")","v":""},null,{"$f":"IFERROR(INDEX(Aktivita,SMALL(IF(Cíl=$F$2,ROW(Aktivita)-MIN(ROW(Aktivita))+1),ROWS($B$3:B22)))&CHAR(10),\"\")","v":""},null,{"$f":"IFERROR(INDEX(Aktivita,SMALL(IF(Cíl=$H$2,ROW(Aktivita)-MIN(ROW(Aktivita))+1),ROWS($B$3:B22)))&CHAR(10),\"\")","v":""}]
[null,{"$f":"IFERROR(INDEX(Aktivita,SMALL(IF(Cíl=$B$2,ROW(Aktivita)-MIN(ROW(Aktivita))+1),ROWS($B$3:B23)))&\" \"&CHAR(10)&(INDEX(Výsledek,SMALL(IF(Cíl=$B$2,ROW(Výsledek)-MIN(ROW(Výsledek))+1),ROWS($B$3:B23))))&CHAR(10),\"\")","v":""},null,{"$f":"IFERROR(INDEX(Aktivita,SMALL(IF(Cíl=$D$2,ROW(Aktivita)-MIN(ROW(Aktivita))+1),ROWS($B$3:B23)))&CHAR(10),\"\")","v":""},null,{"$f":"IFERROR(INDEX(Aktivita,SMALL(IF(Cíl=$F$2,ROW(Aktivita)-MIN(ROW(Aktivita))+1),ROWS($B$3:B23)))&CHAR(10),\"\")","v":""},null,{"$f":"IFERROR(INDEX(Aktivita,SMALL(IF(Cíl=$H$2,ROW(Aktivita)-MIN(ROW(Aktivita))+1),ROWS($B$3:B23)))&CHAR(10),\"\")","v":""}]
[null,{"$f":"IFERROR(INDEX(Aktivita,SMALL(IF(Cíl=$B$2,ROW(Aktivita)-MIN(ROW(Aktivita))+1),ROWS($B$3:B24)))&\" \"&CHAR(10)&(INDEX(Výsledek,SMALL(IF(Cíl=$B$2,ROW(Výsledek)-MIN(ROW(Výsledek))+1),ROWS($B$3:B24))))&CHAR(10),\"\")","v":""},null,{"$f":"IFERROR(INDEX(Aktivita,SMALL(IF(Cíl=$D$2,ROW(Aktivita)-MIN(ROW(Aktivita))+1),ROWS($B$3:B24)))&CHAR(10),\"\")","v":""},null,{"$f":"IFERROR(INDEX(Aktivita,SMALL(IF(Cíl=$F$2,ROW(Aktivita)-MIN(ROW(Aktivita))+1),ROWS($B$3:B24)))&CHAR(10),\"\")","v":""},null,{"$f":"IFERROR(INDEX(Aktivita,SMALL(IF(Cíl=$H$2,ROW(Aktivita)-MIN(ROW(Aktivita))+1),ROWS($B$3:B24)))&CHAR(10),\"\")","v":""}]
[null,{"$f":"IFERROR(INDEX(Aktivita,SMALL(IF(Cíl=$B$2,ROW(Aktivita)-MIN(ROW(Aktivita))+1),ROWS($B$3:B25)))&\" \"&CHAR(10)&(INDEX(Výsledek,SMALL(IF(Cíl=$B$2,ROW(Výsledek)-MIN(ROW(Výsledek))+1),ROWS($B$3:B25))))&CHAR(10),\"\")","v":""},null,{"$f":"IFERROR(INDEX(Aktivita,SMALL(IF(Cíl=$D$2,ROW(Aktivita)-MIN(ROW(Aktivita))+1),ROWS($B$3:B25)))&CHAR(10),\"\")","v":""},null,{"$f":"IFERROR(INDEX(Aktivita,SMALL(IF(Cíl=$F$2,ROW(Aktivita)-MIN(ROW(Aktivita))+1),ROWS($B$3:B25)))&CHAR(10),\"\")","v":""},null,{"$f":"IFERROR(INDEX(Aktivita,SMALL(IF(Cíl=$H$2,ROW(Aktivita)-MIN(ROW(Aktivita))+1),ROWS($B$3:B25)))&CHAR(10),\"\")","v":""}]
[null,{"$f":"IFERROR(INDEX(Aktivita,SMALL(IF(Cíl=$B$2,ROW(Aktivita)-MIN(ROW(Aktivita))+1),ROWS($B$3:B26)))&\" \"&CHAR(10)&(INDEX(Výsledek,SMALL(IF(Cíl=$B$2,ROW(Výsledek)-MIN(ROW(Výsledek))+1),ROWS($B$3:B26))))&CHAR(10),\"\")","v":""},null,{"$f":"IFERROR(INDEX(Aktivita,SMALL(IF(Cíl=$D$2,ROW(Aktivita)-MIN(ROW(Aktivita))+1),ROWS($B$3:B26)))&CHAR(10),\"\")","v":""},null,{"$f":"IFERROR(INDEX(Aktivita,SMALL(IF(Cíl=$F$2,ROW(Aktivita)-MIN(ROW(Aktivita))+1),ROWS($B$3:B26)))&CHAR(10),\"\")","v":""},null,{"$f":"IFERROR(INDEX(Aktivita,SMALL(IF(Cíl=$H$2,ROW(Aktivita)-MIN(ROW(Aktivita))+1),ROWS($B$3:B26)))&CHAR(10),\"\")","v":""}]
[null,{"$f":"IFERROR(INDEX(Aktivita,SMALL(IF(Cíl=$B$2,ROW(Aktivita)-MIN(ROW(Aktivita))+1),ROWS($B$3:B27)))&\" \"&CHAR(10)&(INDEX(Výsledek,SMALL(IF(Cíl=$B$2,ROW(Výsledek)-MIN(ROW(Výsledek))+1),ROWS($B$3:B27))))&CHAR(10),\"\")","v":""},null,{"$f":"IFERROR(INDEX(Aktivita,SMALL(IF(Cíl=$D$2,ROW(Aktivita)-MIN(ROW(Aktivita))+1),ROWS($B$3:B27)))&CHAR(10),\"\")","v":""},null,{"$f":"IFERROR(INDEX(Aktivita,SMALL(IF(Cíl=$F$2,ROW(Aktivita)-MIN(ROW(Aktivita))+1),ROWS($B$3:B27)))&CHAR(10),\"\")","v":""},null,{"$f":"IFERROR(INDEX(Aktivita,SMALL(IF(Cíl=$H$2,ROW(Aktivita)-MIN(ROW(Aktivita))+1),ROWS($B$3:B27)))&CHAR(10),\"\")","v":""}]
[null,{"$f":"IFERROR(INDEX(Aktivita,SMALL(IF(Cíl=$B$2,ROW(Aktivita)-MIN(ROW(Aktivita))+1),ROWS($B$3:B28)))&\" \"&CHAR(10)&(INDEX(Výsledek,SMALL(IF(Cíl=$B$2,ROW(Výsledek)-MIN(ROW(Výsledek))+1),ROWS($B$3:B28))))&CHAR(10),\"\")","v":""},null,{"$f":"IFERROR(INDEX(Aktivita,SMALL(IF(Cíl=$D$2,ROW(Aktivita)-MIN(ROW(Aktivita))+1),ROWS($B$3:B28)))&CHAR(10),\"\")","v":""},null,{"$f":"IFERROR(INDEX(Aktivita,SMALL(IF(Cíl=$F$2,ROW(Aktivita)-MIN(ROW(Aktivita))+1),ROWS($B$3:B28)))&CHAR(10),\"\")","v":""},null,{"$f":"IFERROR(INDEX(Aktivita,SMALL(IF(Cíl=$H$2,ROW(Aktivita)-MIN(ROW(Aktivita))+1),ROWS($B$3:B28)))&CHAR(10),\"\")","v":""}]
[null,{"$f":"IFERROR(INDEX(Aktivita,SMALL(IF(Cíl=$B$2,ROW(Aktivita)-MIN(ROW(Aktivita))+1),ROWS($B$3:B29)))&\" \"&CHAR(10)&(INDEX(Výsledek,SMALL(IF(Cíl=$B$2,ROW(Výsledek)-MIN(ROW(Výsledek))+1),ROWS($B$3:B29))))&CHAR(10),\"\")","v":""},null,{"$f":"IFERROR(INDEX(Aktivita,SMALL(IF(Cíl=$D$2,ROW(Aktivita)-MIN(ROW(Aktivita))+1),ROWS($B$3:B29)))&CHAR(10),\"\")","v":""},null,{"$f":"IFERROR(INDEX(Aktivita,SMALL(IF(Cíl=$F$2,ROW(Aktivita)-MIN(ROW(Aktivita))+1),ROWS($B$3:B29)))&CHAR(10),\"\")","v":""},null,{"$f":"IFERROR(INDEX(Aktivita,SMALL(IF(Cíl=$H$2,ROW(Aktivita)-MIN(ROW(Aktivita))+1),ROWS($B$3:B29)))&CHAR(10),\"\")","v":""}]
[null,{"$f":"IFERROR(INDEX(Aktivita,SMALL(IF(Cíl=$B$2,ROW(Aktivita)-MIN(ROW(Aktivita))+1),ROWS($B$3:B30)))&\" \"&CHAR(10)&(INDEX(Výsledek,SMALL(IF(Cíl=$B$2,ROW(Výsledek)-MIN(ROW(Výsledek))+1),ROWS($B$3:B30))))&CHAR(10),\"\")","v":""},null,{"$f":"IFERROR(INDEX(Aktivita,SMALL(IF(Cíl=$D$2,ROW(Aktivita)-MIN(ROW(Aktivita))+1),ROWS($B$3:B30)))&CHAR(10),\"\")","v":""},null,{"$f":"IFERROR(INDEX(Aktivita,SMALL(IF(Cíl=$F$2,ROW(Aktivita)-MIN(ROW(Aktivita))+1),ROWS($B$3:B30)))&CHAR(10),\"\")","v":""},null,{"$f":"IFERROR(INDEX(Aktivita,SMALL(IF(Cíl=$H$2,ROW(Aktivita)-MIN(ROW(Aktivita))+1),ROWS($B$3:B30)))&CHAR(10),\"\")","v":""}]
[null,{"$f":"IFERROR(INDEX(Aktivita,SMALL(IF(Cíl=$B$2,ROW(Aktivita)-MIN(ROW(Aktivita))+1),ROWS($B$3:B31)))&\" \"&CHAR(10)&(INDEX(Výsledek,SMALL(IF(Cíl=$B$2,ROW(Výsledek)-MIN(ROW(Výsledek))+1),ROWS($B$3:B31))))&CHAR(10),\"\")","v":""},null,{"$f":"IFERROR(INDEX(Aktivita,SMALL(IF(Cíl=$D$2,ROW(Aktivita)-MIN(ROW(Aktivita))+1),ROWS($B$3:B31)))&CHAR(10),\"\")","v":""},null,{"$f":"IFERROR(INDEX(Aktivita,SMALL(IF(Cíl=$F$2,ROW(Aktivita)-MIN(ROW(Aktivita))+1),ROWS($B$3:B31)))&CHAR(10),\"\")","v":""},null,{"$f":"IFERROR(INDEX(Aktivita,SMALL(IF(Cíl=$H$2,ROW(Aktivita)-MIN(ROW(Aktivita))+1),ROWS($B$3:B31)))&CHAR(10),\"\")","v":""}]
[null,{"$f":"IFERROR(INDEX(Aktivita,SMALL(IF(Cíl=$B$2,ROW(Aktivita)-MIN(ROW(Aktivita))+1),ROWS($B$3:B32)))&\" \"&CHAR(10)&(INDEX(Výsledek,SMALL(IF(Cíl=$B$2,ROW(Výsledek)-MIN(ROW(Výsledek))+1),ROWS($B$3:B32))))&CHAR(10),\"\")","v":""},null,{"$f":"IFERROR(INDEX(Aktivita,SMALL(IF(Cíl=$D$2,ROW(Aktivita)-MIN(ROW(Aktivita))+1),ROWS($B$3:B32)))&CHAR(10),\"\")","v":""},null,{"$f":"IFERROR(INDEX(Aktivita,SMALL(IF(Cíl=$F$2,ROW(Aktivita)-MIN(ROW(Aktivita))+1),ROWS($B$3:B32)))&CHAR(10),\"\")","v":""},null,{"$f":"IFERROR(INDEX(Aktivita,SMALL(IF(Cíl=$H$2,ROW(Aktivita)-MIN(ROW(Aktivita))+1),ROWS($B$3:B32)))&CHAR(10),\"\")","v":""}]
[null,{"$f":"IFERROR(INDEX(Aktivita,SMALL(IF(Cíl=$B$2,ROW(Aktivita)-MIN(ROW(Aktivita))+1),ROWS($B$3:B33)))&\" \"&CHAR(10)&(INDEX(Výsledek,SMALL(IF(Cíl=$B$2,ROW(Výsledek)-MIN(ROW(Výsledek))+1),ROWS($B$3:B33))))&CHAR(10),\"\")","v":""},null,{"$f":"IFERROR(INDEX(Aktivita,SMALL(IF(Cíl=$D$2,ROW(Aktivita)-MIN(ROW(Aktivita))+1),ROWS($B$3:B33)))&CHAR(10),\"\")","v":""},null,{"$f":"IFERROR(INDEX(Aktivita,SMALL(IF(Cíl=$F$2,ROW(Aktivita)-MIN(ROW(Aktivita))+1),ROWS($B$3:B33)))&CHAR(10),\"\")","v":""},null,{"$f":"IFERROR(INDEX(Aktivita,SMALL(IF(Cíl=$H$2,ROW(Aktivita)-MIN(ROW(Aktivita))+1),ROWS($B$3:B33)))&CHAR(10),\"\")","v":""}]
[null,{"$f":"IFERROR(INDEX(Aktivita,SMALL(IF(Cíl=$B$2,ROW(Aktivita)-MIN(ROW(Aktivita))+1),ROWS($B$3:B34)))&\" \"&CHAR(10)&(INDEX(Výsledek,SMALL(IF(Cíl=$B$2,ROW(Výsledek)-MIN(ROW(Výsledek))+1),ROWS($B$3:B34))))&CHAR(10),\"\")","v":""},null,{"$f":"IFERROR(INDEX(Aktivita,SMALL(IF(Cíl=$D$2,ROW(Aktivita)-MIN(ROW(Aktivita))+1),ROWS($B$3:B34)))&CHAR(10),\"\")","v":""},null,{"$f":"IFERROR(INDEX(Aktivita,SMALL(IF(Cíl=$F$2,ROW(Aktivita)-MIN(ROW(Aktivita))+1),ROWS($B$3:B34)))&CHAR(10),\"\")","v":""},null,{"$f":"IFERROR(INDEX(Aktivita,SMALL(IF(Cíl=$H$2,ROW(Aktivita)-MIN(ROW(Aktivita))+1),ROWS($B$3:B34)))&CHAR(10),\"\")","v":""}]
[null,{"$f":"IFERROR(INDEX(Aktivita,SMALL(IF(Cíl=$B$2,ROW(Aktivita)-MIN(ROW(Aktivita))+1),ROWS($B$3:B35)))&\" \"&CHAR(10)&(INDEX(Výsledek,SMALL(IF(Cíl=$B$2,ROW(Výsledek)-MIN(ROW(Výsledek))+1),ROWS($B$3:B35))))&CHAR(10),\"\")","v":""},null,{"$f":"IFERROR(INDEX(Aktivita,SMALL(IF(Cíl=$D$2,ROW(Aktivita)-MIN(ROW(Aktivita))+1),ROWS($B$3:B35)))&CHAR(10),\"\")","v":""},null,{"$f":"IFERROR(INDEX(Aktivita,SMALL(IF(Cíl=$F$2,ROW(Aktivita)-MIN(ROW(Aktivita))+1),ROWS($B$3:B35)))&CHAR(10),\"\")","v":""},null,{"$f":"IFERROR(INDEX(Aktivita,SMALL(IF(Cíl=$H$2,ROW(Aktivita)-MIN(ROW(Aktivita))+1),ROWS($B$3:B35)))&CHAR(10),\"\")","v":""}]
[null,{"$f":"IFERROR(INDEX(Aktivita,SMALL(IF(Cíl=$B$2,ROW(Aktivita)-MIN(ROW(Aktivita))+1),ROWS($B$3:B36)))&\" \"&CHAR(10)&(INDEX(Výsledek,SMALL(IF(Cíl=$B$2,ROW(Výsledek)-MIN(ROW(Výsledek))+1),ROWS($B$3:B36))))&CHAR(10),\"\")","v":""},null,{"$f":"IFERROR(INDEX(Aktivita,SMALL(IF(Cíl=$D$2,ROW(Aktivita)-MIN(ROW(Aktivita))+1),ROWS($B$3:B36)))&CHAR(10),\"\")","v":""},null,{"$f":"IFERROR(INDEX(Aktivita,SMALL(IF(Cíl=$F$2,ROW(Aktivita)-MIN(ROW(Aktivita))+1),ROWS($B$3:B36)))&CHAR(10),\"\")","v":""},null,{"$f":"IFERROR(INDEX(Aktivita,SMALL(IF(Cíl=$H$2,ROW(Aktivita)-MIN(ROW(Aktivita))+1),ROWS($B$3:B36)))&CHAR(10),\"\")","v":""}]
[null,{"$f":"IFERROR(INDEX(Aktivita,SMALL(IF(Cíl=$B$2,ROW(Aktivita)-MIN(ROW(Aktivita))+1),ROWS($B$3:B37)))&\" \"&CHAR(10)&(INDEX(Výsledek,SMALL(IF(Cíl=$B$2,ROW(Výsledek)-MIN(ROW(Výsledek))+1),ROWS($B$3:B37))))&CHAR(10),\"\")","v":""},null,{"$f":"IFERROR(INDEX(Aktivita,SMALL(IF(Cíl=$D$2,ROW(Aktivita)-MIN(ROW(Aktivita))+1),ROWS($B$3:B37)))&CHAR(10),\"\")","v":""},null,{"$f":"IFERROR(INDEX(Aktivita,SMALL(IF(Cíl=$F$2,ROW(Aktivita)-MIN(ROW(Aktivita))+1),ROWS($B$3:B37)))&CHAR(10),\"\")","v":""},null,{"$f":"IFERROR(INDEX(Aktivita,SMALL(IF(Cíl=$H$2,ROW(Aktivita)-MIN(ROW(Aktivita))+1),ROWS($B$3:B37)))&CHAR(10),\"\")","v":""}]
[null,{"$f":"IFERROR(INDEX(Aktivita,SMALL(IF(Cíl=$B$2,ROW(Aktivita)-MIN(ROW(Aktivita))+1),ROWS($B$3:B38)))&\" \"&CHAR(10)&(INDEX(Výsledek,SMALL(IF(Cíl=$B$2,ROW(Výsledek)-MIN(ROW(Výsledek))+1),ROWS($B$3:B38))))&CHAR(10),\"\")","v":""},null,{"$f":"IFERROR(INDEX(Aktivita,SMALL(IF(Cíl=$D$2,ROW(Aktivita)-MIN(ROW(Aktivita))+1),ROWS($B$3:B38)))&CHAR(10),\"\")","v":""},null,{"$f":"IFERROR(INDEX(Aktivita,SMALL(IF(Cíl=$F$2,ROW(Aktivita)-MIN(ROW(Aktivita))+1),ROWS($B$3:B38)))&CHAR(10),\"\")","v":""},null,{"$f":"IFERROR(INDEX(Aktivita,SMALL(IF(Cíl=$H$2,ROW(Aktivita)-MIN(ROW(Aktivita))+1),ROWS($B$3:B38)))&CHAR(10),\"\")","v":""}]
[null,{"$f":"IFERROR(INDEX(Aktivita,SMALL(IF(Cíl=$B$2,ROW(Aktivita)-MIN(ROW(Aktivita))+1),ROWS($B$3:B39)))&\" \"&CHAR(10)&(INDEX(Výsledek,SMALL(IF(Cíl=$B$2,ROW(Výsledek)-MIN(ROW(Výsledek))+1),ROWS($B$3:B39))))&CHAR(10),\"\")","v":""},null,{"$f":"IFERROR(INDEX(Aktivita,SMALL(IF(Cíl=$D$2,ROW(Aktivita)-MIN(ROW(Aktivita))+1),ROWS($B$3:B39)))&CHAR(10),\"\")","v":""},null,{"$f":"IFERROR(INDEX(Aktivita,SMALL(IF(Cíl=$F$2,ROW(Aktivita)-MIN(ROW(Aktivita))+1),ROWS($B$3:B39)))&CHAR(10),\"\")","v":""},null,{"$f":"IFERROR(INDEX(Aktivita,SMALL(IF(Cíl=$H$2,ROW(Aktivita)-MIN(ROW(Aktivita))+1),ROWS($B$3:B39)))&CHAR(10),\"\")","v":""}]
[null,{"$f":"IFERROR(INDEX(Aktivita,SMALL(IF(Cíl=$B$2,ROW(Aktivita)-MIN(ROW(Aktivita))+1),ROWS($B$3:B40)))&\" \"&CHAR(10)&(INDEX(Výsledek,SMALL(IF(Cíl=$B$2,ROW(Výsledek)-MIN(ROW(Výsledek))+1),ROWS($B$3:B40))))&CHAR(10),\"\")","v":""},null,{"$f":"IFERROR(INDEX(Aktivita,SMALL(IF(Cíl=$D$2,ROW(Aktivita)-MIN(ROW(Aktivita))+1),ROWS($B$3:B40)))&CHAR(10),\"\")","v":""},null,{"$f":"IFERROR(INDEX(Aktivita,SMALL(IF(Cíl=$F$2,ROW(Aktivita)-MIN(ROW(Aktivita))+1),ROWS($B$3:B40)))&CHAR(10),\"\")","v":""},null,{"$f":"IFERROR(INDEX(Aktivita,SMALL(IF(Cíl=$H$2,ROW(Aktivita)-MIN(ROW(Aktivita))+1),ROWS($B$3:B40)))&CHAR(10),\"\")","v":""}]
[null,{"$f":"IFERROR(INDEX(Aktivita,SMALL(IF(Cíl=$B$2,ROW(Aktivita)-MIN(ROW(Aktivita))+1),ROWS($B$3:B41)))&\" \"&CHAR(10)&(INDEX(Výsledek,SMALL(IF(Cíl=$B$2,ROW(Výsledek)-MIN(ROW(Výsledek))+1),ROWS($B$3:B41))))&CHAR(10),\"\")","v":""},null,{"$f":"IFERROR(INDEX(Aktivita,SMALL(IF(Cíl=$D$2,ROW(Aktivita)-MIN(ROW(Aktivita))+1),ROWS($B$3:B41)))&CHAR(10),\"\")","v":""},null,{"$f":"IFERROR(INDEX(Aktivita,SMALL(IF(Cíl=$F$2,ROW(Aktivita)-MIN(ROW(Aktivita))+1),ROWS($B$3:B41)))&CHAR(10),\"\")","v":""},null,{"$f":"IFERROR(INDEX(Aktivita,SMALL(IF(Cíl=$H$2,ROW(Aktivita)-MIN(ROW(Aktivita))+1),ROWS($B$3:B41)))&CHAR(10),\"\")","v":""}]
[null,{"$f":"IFERROR(INDEX(Aktivita,SMALL(IF(Cíl=$B$2,ROW(Aktivita)-MIN(ROW(Aktivita))+1),ROWS($B$3:B42)))&\" \"&CHAR(10)&(INDEX(Výsledek,SMALL(IF(Cíl=$B$2,ROW(Výsledek)-MIN(ROW(Výsledek))+1),ROWS($B$3:B42))))&CHAR(10),\"\")","v":""},null,{"$f":"IFERROR(INDEX(Aktivita,SMALL(IF(Cíl=$D$2,ROW(Aktivita)-MIN(ROW(Aktivita))+1),ROWS($B$3:B42)))&CHAR(10),\"\")","v":""},null,{"$f":"IFERROR(INDEX(Aktivita,SMALL(IF(Cíl=$F$2,ROW(Aktivita)-MIN(ROW(Aktivita))+1),ROWS($B$3:B42)))&CHAR(10),\"\")","v":""},null,{"$f":"IFERROR(INDEX(Aktivita,SMALL(IF(Cíl=$H$2,ROW(Aktivita)-MIN(ROW(Aktivita))+1),ROWS($B$3:B42)))&CHAR(10),\"\")","v":""}]
[null,{"$f":"IFERROR(INDEX(Aktivita,SMALL(IF(Cíl=$B$2,ROW(Aktivita)-MIN(ROW(Aktivita))+1),ROWS($B$3:B43)))&\" \"&CHAR(10)&(INDEX(Výsledek,SMALL(IF(Cíl=$B$2,ROW(Výsledek)-MIN(ROW(Výsledek))+1),ROWS($B$3:B43))))&CHAR(10),\"\")","v":""},null,{"$f":"IFERROR(INDEX(Aktivita,SMALL(IF(Cíl=$D$2,ROW(Aktivita)-MIN(ROW(Aktivita))+1),ROWS($B$3:B43)))&CHAR(10),\"\")","v":""},null,{"$f":"IFERROR(INDEX(Aktivita,SMALL(IF(Cíl=$F$2,ROW(Aktivita)-MIN(ROW(Aktivita))+1),ROWS($B$3:B43)))&CHAR(10),\"\")","v":""},null,{"$f":"IFERROR(INDEX(Aktivita,SMALL(IF(Cíl=$H$2,ROW(Aktivita)-MIN(ROW(Aktivita))+1),ROWS($B$3:B43)))&CHAR(10),\"\")","v":""}]
[null,{"$f":"IFERROR(INDEX(Aktivita,SMALL(IF(Cíl=$B$2,ROW(Aktivita)-MIN(ROW(Aktivita))+1),ROWS($B$3:B44)))&\" \"&CHAR(10)&(INDEX(Výsledek,SMALL(IF(Cíl=$B$2,ROW(Výsledek)-MIN(ROW(Výsledek))+1),ROWS($B$3:B44))))&CHAR(10),\"\")","v":""},null,{"$f":"IFERROR(INDEX(Aktivita,SMALL(IF(Cíl=$D$2,ROW(Aktivita)-MIN(ROW(Aktivita))+1),ROWS($B$3:B44)))&CHAR(10),\"\")","v":""},null,{"$f":"IFERROR(INDEX(Aktivita,SMALL(IF(Cíl=$F$2,ROW(Aktivita)-MIN(ROW(Aktivita))+1),ROWS($B$3:B44)))&CHAR(10),\"\")","v":""},null,{"$f":"IFERROR(INDEX(Aktivita,SMALL(IF(Cíl=$H$2,ROW(Aktivita)-MIN(ROW(Aktivita))+1),ROWS($B$3:B44)))&CHAR(10),\"\")","v":""}]
[null,{"$f":"IFERROR(INDEX(Aktivita,SMALL(IF(Cíl=$B$2,ROW(Aktivita)-MIN(ROW(Aktivita))+1),ROWS($B$3:B45)))&\" \"&CHAR(10)&(INDEX(Výsledek,SMALL(IF(Cíl=$B$2,ROW(Výsledek)-MIN(ROW(Výsledek))+1),ROWS($B$3:B45))))&CHAR(10),\"\")","v":""},null,{"$f":"IFERROR(INDEX(Aktivita,SMALL(IF(Cíl=$D$2,ROW(Aktivita)-MIN(ROW(Aktivita))+1),ROWS($B$3:B45)))&CHAR(10),\"\")","v":""},null,{"$f":"IFERROR(INDEX(Aktivita,SMALL(IF(Cíl=$F$2,ROW(Aktivita)-MIN(ROW(Aktivita))+1),ROWS($B$3:B45)))&CHAR(10),\"\")","v":""},null,{"$f":"IFERROR(INDEX(Aktivita,SMALL(IF(Cíl=$H$2,ROW(Aktivita)-MIN(ROW(Aktivita))+1),ROWS($B$3:B45)))&CHAR(10),\"\")","v":""}]
[null,{"$f":"IFERROR(INDEX(Aktivita,SMALL(IF(Cíl=$B$2,ROW(Aktivita)-MIN(ROW(Aktivita))+1),ROWS($B$3:B46)))&\" \"&CHAR(10)&(INDEX(Výsledek,SMALL(IF(Cíl=$B$2,ROW(Výsledek)-MIN(ROW(Výsledek))+1),ROWS($B$3:B46))))&CHAR(10),\"\")","v":""},null,{"$f":"IFERROR(INDEX(Aktivita,SMALL(IF(Cíl=$D$2,ROW(Aktivita)-MIN(ROW(Aktivita))+1),ROWS($B$3:B46)))&CHAR(10),\"\")","v":""},null,{"$f":"IFERROR(INDEX(Aktivita,SMALL(IF(Cíl=$F$2,ROW(Aktivita)-MIN(ROW(Aktivita))+1),ROWS($B$3:B46)))&CHAR(10),\"\")","v":""},null,{"$f":"IFERROR(INDEX(Aktivita,SMALL(IF(Cíl=$H$2,ROW(Aktivita)-MIN(ROW(Aktivita))+1),ROWS($B$3:B46)))&CHAR(10),\"\")","v":""}]
[null,{"$f":"IFERROR(INDEX(Aktivita,SMALL(IF(Cíl=$B$2,ROW(Aktivita)-MIN(ROW(Aktivita))+1),ROWS($B$3:B47)))&\" \"&CHAR(10)&(INDEX(Výsledek,SMALL(IF(Cíl=$B$2,ROW(Výsledek)-MIN(ROW(Výsledek))+1),ROWS($B$3:B47))))&CHAR(10),\"\")","v":""},null,{"$f":"IFERROR(INDEX(Aktivita,SMALL(IF(Cíl=$D$2,ROW(Aktivita)-MIN(ROW(Aktivita))+1),ROWS($B$3:B47)))&CHAR(10),\"\")","v":""},null,{"$f":"IFERROR(INDEX(Aktivita,SMALL(IF(Cíl=$F$2,ROW(Aktivita)-MIN(ROW(Aktivita))+1),ROWS($B$3:B47)))&CHAR(10),\"\")","v":""},null,{"$f":"IFERROR(INDEX(Aktivita,SMALL(IF(Cíl=$H$2,ROW(Aktivita)-MIN(ROW(Aktivita))+1),ROWS($B$3:B47)))&CHAR(10),\"\")","v":""}]
[null,{"$f":"IFERROR(INDEX(Aktivita,SMALL(IF(Cíl=$B$2,ROW(Aktivita)-MIN(ROW(Aktivita))+1),ROWS($B$3:B48)))&\" \"&CHAR(10)&(INDEX(Výsledek,SMALL(IF(Cíl=$B$2,ROW(Výsledek)-MIN(ROW(Výsledek))+1),ROWS($B$3:B48))))&CHAR(10),\"\")","v":""},null,{"$f":"IFERROR(INDEX(Aktivita,SMALL(IF(Cíl=$D$2,ROW(Aktivita)-MIN(ROW(Aktivita))+1),ROWS($B$3:B48)))&CHAR(10),\"\")","v":""},null,{"$f":"IFERROR(INDEX(Aktivita,SMALL(IF(Cíl=$F$2,ROW(Aktivita)-MIN(ROW(Aktivita))+1),ROWS($B$3:B48)))&CHAR(10),\"\")","v":""},null,{"$f":"IFERROR(INDEX(Aktivita,SMALL(IF(Cíl=$H$2,ROW(Aktivita)-MIN(ROW(Aktivita))+1),ROWS($B$3:B48)))&CHAR(10),\"\")","v":""}]
[null,{"$f":"IFERROR(INDEX(Aktivita,SMALL(IF(Cíl=$B$2,ROW(Aktivita)-MIN(ROW(Aktivita))+1),ROWS($B$3:B49)))&\" \"&CHAR(10)&(INDEX(Výsledek,SMALL(IF(Cíl=$B$2,ROW(Výsledek)-MIN(ROW(Výsledek))+1),ROWS($B$3:B49))))&CHAR(10),\"\")","v":""},null,{"$f":"IFERROR(INDEX(Aktivita,SMALL(IF(Cíl=$D$2,ROW(Aktivita)-MIN(ROW(Aktivita))+1),ROWS($B$3:B49)))&CHAR(10),\"\")","v":""},null,{"$f":"IFERROR(INDEX(Aktivita,SMALL(IF(Cíl=$F$2,ROW(Aktivita)-MIN(ROW(Aktivita))+1),ROWS($B$3:B49)))&CHAR(10),\"\")","v":""},null,{"$f":"IFERROR(INDEX(Aktivita,SMALL(IF(Cíl=$H$2,ROW(Aktivita)-MIN(ROW(Aktivita))+1),ROWS($B$3:B49)))&CHAR(10),\"\")","v":""}]
[null,{"$f":"IFERROR(INDEX(Aktivita,SMALL(IF(Cíl=$B$2,ROW(Aktivita)-MIN(ROW(Aktivita))+1),ROWS($B$3:B50)))&\" \"&CHAR(10)&(INDEX(Výsledek,SMALL(IF(Cíl=$B$2,ROW(Výsledek)-MIN(ROW(Výsledek))+1),ROWS($B$3:B50))))&CHAR(10),\"\")","v":""},null,{"$f":"IFERROR(INDEX(Aktivita,SMALL(IF(Cíl=$D$2,ROW(Aktivita)-MIN(ROW(Aktivita))+1),ROWS($B$3:B50)))&CHAR(10),\"\")","v":""},null,{"$f":"IFERROR(INDEX(Aktivita,SMALL(IF(Cíl=$F$2,ROW(Aktivita)-MIN(ROW(Aktivita))+1),ROWS($B$3:B50)))&CHAR(10),\"\")","v":""},null,{"$f":"IFERROR(INDEX(Aktivita,SMALL(IF(Cíl=$H$2,ROW(Aktivita)-MIN(ROW(Aktivita))+1),ROWS($B$3:B50)))&CHAR(10),\"\")","v":""}]
[null,{"$f":"IFERROR(INDEX(Aktivita,SMALL(IF(Cíl=$B$2,ROW(Aktivita)-MIN(ROW(Aktivita))+1),ROWS($B$3:B51)))&\" \"&CHAR(10)&(INDEX(Výsledek,SMALL(IF(Cíl=$B$2,ROW(Výsledek)-MIN(ROW(Výsledek))+1),ROWS($B$3:B51))))&CHAR(10),\"\")","v":""},null,{"$f":"IFERROR(INDEX(Aktivita,SMALL(IF(Cíl=$D$2,ROW(Aktivita)-MIN(ROW(Aktivita))+1),ROWS($B$3:B51)))&CHAR(10),\"\")","v":""},null,{"$f":"IFERROR(INDEX(Aktivita,SMALL(IF(Cíl=$F$2,ROW(Aktivita)-MIN(ROW(Aktivita))+1),ROWS($B$3:B51)))&CHAR(10),\"\")","v":""},null,{"$f":"IFERROR(INDEX(Aktivita,SMALL(IF(Cíl=$H$2,ROW(Aktivita)-MIN(ROW(Aktivita))+1),ROWS($B$3:B51)))&CHAR(10),\"\")","v":""}]
[null,{"$f":"IFERROR(INDEX(Aktivita,SMALL(IF(Cíl=$B$2,ROW(Aktivita)-MIN(ROW(Aktivita))+1),ROWS($B$3:B52)))&\" \"&CHAR(10)&(INDEX(Výsledek,SMALL(IF(Cíl=$B$2,ROW(Výsledek)-MIN(ROW(Výsledek))+1),ROWS($B$3:B52))))&CHAR(10),\"\")","v":""},null,{"$f":"IFERROR(INDEX(Aktivita,SMALL(IF(Cíl=$D$2,ROW(Aktivita)-MIN(ROW(Aktivita))+1),ROWS($B$3:B52)))&CHAR(10),\"\")","v":""},null,{"$f":"IFERROR(INDEX(Aktivita,SMALL(IF(Cíl=$F$2,ROW(Aktivita)-MIN(ROW(Aktivita))+1),ROWS($B$3:B52)))&CHAR(10),\"\")","v":""},null,{"$f":"IFERROR(INDEX(Aktivita,SMALL(IF(Cíl=$H$2,ROW(Aktivita)-MIN(ROW(Aktivita))+1),ROWS($B$3:B52)))&CHAR(10),\"\")","v":""}]
[null,{"$f":"IFERROR(INDEX(Aktivita,SMALL(IF(Cíl=$B$2,ROW(Aktivita)-MIN(ROW(Aktivita))+1),ROWS($B$3:B53)))&\" \"&CHAR(10)&(INDEX(Výsledek,SMALL(IF(Cíl=$B$2,ROW(Výsledek)-MIN(ROW(Výsledek))+1),ROWS($B$3:B53))))&CHAR(10),\"\")","v":""},null,{"$f":"IFERROR(INDEX(Aktivita,SMALL(IF(Cíl=$D$2,ROW(Aktivita)-MIN(ROW(Aktivita))+1),ROWS($B$3:B53)))&CHAR(10),\"\")","v":""},null,{"$f":"IFERROR(INDEX(Aktivita,SMALL(IF(Cíl=$F$2,ROW(Aktivita)-MIN(ROW(Aktivita))+1),ROWS($B$3:B53)))&CHAR(10),\"\")","v":""},null,{"$f":"IFERROR(INDEX(Aktivita,SMALL(IF(Cíl=$H$2,ROW(Aktivita)-MIN(ROW(Aktivita))+1),ROWS($B$3:B53)))&CHAR(10),\"\")","v":""}]
[null,{"$f":"IFERROR(INDEX(Aktivita,SMALL(IF(Cíl=$B$2,ROW(Aktivita)-MIN(ROW(Aktivita))+1),ROWS($B$3:B54)))&\" \"&CHAR(10)&(INDEX(Výsledek,SMALL(IF(Cíl=$B$2,ROW(Výsledek)-MIN(ROW(Výsledek))+1),ROWS($B$3:B54))))&CHAR(10),\"\")","v":""},null,{"$f":"IFERROR(INDEX(Aktivita,SMALL(IF(Cíl=$D$2,ROW(Aktivita)-MIN(ROW(Aktivita))+1),ROWS($B$3:B54)))&CHAR(10),\"\")","v":""},null,{"$f":"IFERROR(INDEX(Aktivita,SMALL(IF(Cíl=$F$2,ROW(Aktivita)-MIN(ROW(Aktivita))+1),ROWS($B$3:B54)))&CHAR(10),\"\")","v":""},null,{"$f":"IFERROR(INDEX(Aktivita,SMALL(IF(Cíl=$H$2,ROW(Aktivita)-MIN(ROW(Aktivita))+1),ROWS($B$3:B54)))&CHAR(10),\"\")","v":""}]
[null,{"$f":"IFERROR(INDEX(Aktivita,SMALL(IF(Cíl=$B$2,ROW(Aktivita)-MIN(ROW(Aktivita))+1),ROWS($B$3:B55)))&\" \"&CHAR(10)&(INDEX(Výsledek,SMALL(IF(Cíl=$B$2,ROW(Výsledek)-MIN(ROW(Výsledek))+1),ROWS($B$3:B55))))&CHAR(10),\"\")","v":""},null,{"$f":"IFERROR(INDEX(Aktivita,SMALL(IF(Cíl=$D$2,ROW(Aktivita)-MIN(ROW(Aktivita))+1),ROWS($B$3:B55)))&CHAR(10),\"\")","v":""},null,{"$f":"IFERROR(INDEX(Aktivita,SMALL(IF(Cíl=$F$2,ROW(Aktivita)-MIN(ROW(Aktivita))+1),ROWS($B$3:B55)))&CHAR(10),\"\")","v":""},null,{"$f":"IFERROR(INDEX(Aktivita,SMALL(IF(Cíl=$H$2,ROW(Aktivita)-MIN(ROW(Aktivita))+1),ROWS($B$3:B55)))&CHAR(10),\"\")","v":""}]
[null,{"$f":"IFERROR(INDEX(Aktivita,SMALL(IF(Cíl=$B$2,ROW(Aktivita)-MIN(ROW(Aktivita))+1),ROWS($B$3:B56)))&\" \"&CHAR(10)&(INDEX(Výsledek,SMALL(IF(Cíl=$B$2,ROW(Výsledek)-MIN(ROW(Výsledek))+1),ROWS($B$3:B56))))&CHAR(10),\"\")","v":""},null,{"$f":"IFERROR(INDEX(Aktivita,SMALL(IF(Cíl=$D$2,ROW(Aktivita)-MIN(ROW(Aktivita))+1),ROWS($B$3:B56)))&CHAR(10),\"\")","v":""},null,{"$f":"IFERROR(INDEX(Aktivita,SMALL(IF(Cíl=$F$2,ROW(Aktivita)-MIN(ROW(Aktivita))+1),ROWS($B$3:B56)))&CHAR(10),\"\")","v":""},null,{"$f":"IFERROR(INDEX(Aktivita,SMALL(IF(Cíl=$H$2,ROW(Aktivita)-MIN(ROW(Aktivita))+1),ROWS($B$3:B56)))&CHAR(10),\"\")","v":""}]
[null,{"$f":"IFERROR(INDEX(Aktivita,SMALL(IF(Cíl=$B$2,ROW(Aktivita)-MIN(ROW(Aktivita))+1),ROWS($B$3:B57)))&\" \"&CHAR(10)&(INDEX(Výsledek,SMALL(IF(Cíl=$B$2,ROW(Výsledek)-MIN(ROW(Výsledek))+1),ROWS($B$3:B57))))&CHAR(10),\"\")","v":""},null,{"$f":"IFERROR(INDEX(Aktivita,SMALL(IF(Cíl=$D$2,ROW(Aktivita)-MIN(ROW(Aktivita))+1),ROWS($B$3:B57)))&CHAR(10),\"\")","v":""},null,{"$f":"IFERROR(INDEX(Aktivita,SMALL(IF(Cíl=$F$2,ROW(Aktivita)-MIN(ROW(Aktivita))+1),ROWS($B$3:B57)))&CHAR(10),\"\")","v":""},null,{"$f":"IFERROR(INDEX(Aktivita,SMALL(IF(Cíl=$H$2,ROW(Aktivita)-MIN(ROW(Aktivita))+1),ROWS($B$3:B57)))&CHAR(10),\"\")","v":""}]
[null,{"$f":"IFERROR(INDEX(Aktivita,SMALL(IF(Cíl=$B$2,ROW(Aktivita)-MIN(ROW(Aktivita))+1),ROWS($B$3:B58)))&\" \"&CHAR(10)&(INDEX(Výsledek,SMALL(IF(Cíl=$B$2,ROW(Výsledek)-MIN(ROW(Výsledek))+1),ROWS($B$3:B58))))&CHAR(10),\"\")","v":""},null,{"$f":"IFERROR(INDEX(Aktivita,SMALL(IF(Cíl=$D$2,ROW(Aktivita)-MIN(ROW(Aktivita))+1),ROWS($B$3:B58)))&CHAR(10),\"\")","v":""},null,{"$f":"IFERROR(INDEX(Aktivita,SMALL(IF(Cíl=$F$2,ROW(Aktivita)-MIN(ROW(Aktivita))+1),ROWS($B$3:B58)))&CHAR(10),\"\")","v":""},null,{"$f":"IFERROR(INDEX(Aktivita,SMALL(IF(Cíl=$H$2,ROW(Aktivita)-MIN(ROW(Aktivita))+1),ROWS($B$3:B58)))&CHAR(10),\"\")","v":""}]
[null,{"$f":"IFERROR(INDEX(Aktivita,SMALL(IF(Cíl=$B$2,ROW(Aktivita)-MIN(ROW(Aktivita))+1),ROWS($B$3:B59)))&\" \"&CHAR(10)&(INDEX(Výsledek,SMALL(IF(Cíl=$B$2,ROW(Výsledek)-MIN(ROW(Výsledek))+1),ROWS($B$3:B59))))&CHAR(10),\"\")","v":""},null,{"$f":"IFERROR(INDEX(Aktivita,SMALL(IF(Cíl=$D$2,ROW(Aktivita)-MIN(ROW(Aktivita))+1),ROWS($B$3:B59)))&CHAR(10),\"\")","v":""},null,{"$f":"IFERROR(INDEX(Aktivita,SMALL(IF(Cíl=$F$2,ROW(Aktivita)-MIN(ROW(Aktivita))+1),ROWS($B$3:B59)))&CHAR(10),\"\")","v":""},null,{"$f":"IFERROR(INDEX(Aktivita,SMALL(IF(Cíl=$H$2,ROW(Aktivita)-MIN(ROW(Aktivita))+1),ROWS($B$3:B59)))&CHAR(10),\"\")","v":""}]
[null,{"$f":"IFERROR(INDEX(Aktivita,SMALL(IF(Cíl=$B$2,ROW(Aktivita)-MIN(ROW(Aktivita))+1),ROWS($B$3:B60)))&\" \"&CHAR(10)&(INDEX(Výsledek,SMALL(IF(Cíl=$B$2,ROW(Výsledek)-MIN(ROW(Výsledek))+1),ROWS($B$3:B60))))&CHAR(10),\"\")","v":""},null,{"$f":"IFERROR(INDEX(Aktivita,SMALL(IF(Cíl=$D$2,ROW(Aktivita)-MIN(ROW(Aktivita))+1),ROWS($B$3:B60)))&CHAR(10),\"\")","v":""},null,{"$f":"IFERROR(INDEX(Aktivita,SMALL(IF(Cíl=$F$2,ROW(Aktivita)-MIN(ROW(Aktivita))+1),ROWS($B$3:B60)))&CHAR(10),\"\")","v":""},null,{"$f":"IFERROR(INDEX(Aktivita,SMALL(IF(Cíl=$H$2,ROW(Aktivita)-MIN(ROW(Aktivita))+1),ROWS($B$3:B60)))&CHAR(10),\"\")","v":""}]
[null,{"$f":"IFERROR(INDEX(Aktivita,SMALL(IF(Cíl=$B$2,ROW(Aktivita)-MIN(ROW(Aktivita))+1),ROWS($B$3:B61)))&\" \"&CHAR(10)&(INDEX(Výsledek,SMALL(IF(Cíl=$B$2,ROW(Výsledek)-MIN(ROW(Výsledek))+1),ROWS($B$3:B61))))&CHAR(10),\"\")","v":""},null,{"$f":"IFERROR(INDEX(Aktivita,SMALL(IF(Cíl=$D$2,ROW(Aktivita)-MIN(ROW(Aktivita))+1),ROWS($B$3:B61)))&CHAR(10),\"\")","v":""},null,{"$f":"IFERROR(INDEX(Aktivita,SMALL(IF(Cíl=$F$2,ROW(Aktivita)-MIN(ROW(Aktivita))+1),ROWS($B$3:B61)))&CHAR(10),\"\")","v":""},null,{"$f":"IFERROR(INDEX(Aktivita,SMALL(IF(Cíl=$H$2,ROW(Aktivita)-MIN(ROW(Aktivita))+1),ROWS($B$3:B61)))&CHAR(10),\"\")","v":""}]
[null,{"$f":"IFERROR(INDEX(Aktivita,SMALL(IF(Cíl=$B$2,ROW(Aktivita)-MIN(ROW(Aktivita))+1),ROWS($B$3:B62)))&\" \"&CHAR(10)&(INDEX(Výsledek,SMALL(IF(Cíl=$B$2,ROW(Výsledek)-MIN(ROW(Výsledek))+1),ROWS($B$3:B62))))&CHAR(10),\"\")","v":""},null,{"$f":"IFERROR(INDEX(Aktivita,SMALL(IF(Cíl=$D$2,ROW(Aktivita)-MIN(ROW(Aktivita))+1),ROWS($B$3:B62)))&CHAR(10),\"\")","v":""},null,{"$f":"IFERROR(INDEX(Aktivita,SMALL(IF(Cíl=$F$2,ROW(Aktivita)-MIN(ROW(Aktivita))+1),ROWS($B$3:B62)))&CHAR(10),\"\")","v":""},null,{"$f":"IFERROR(INDEX(Aktivita,SMALL(IF(Cíl=$H$2,ROW(Aktivita)-MIN(ROW(Aktivita))+1),ROWS($B$3:B62)))&CHAR(10),\"\")","v":""}]
[null,{"$f":"IFERROR(INDEX(Aktivita,SMALL(IF(Cíl=$B$2,ROW(Aktivita)-MIN(ROW(Aktivita))+1),ROWS($B$3:B63)))&\" \"&CHAR(10)&(INDEX(Výsledek,SMALL(IF(Cíl=$B$2,ROW(Výsledek)-MIN(ROW(Výsledek))+1),ROWS($B$3:B63))))&CHAR(10),\"\")","v":""},null,{"$f":"IFERROR(INDEX(Aktivita,SMALL(IF(Cíl=$D$2,ROW(Aktivita)-MIN(ROW(Aktivita))+1),ROWS($B$3:B63)))&CHAR(10),\"\")","v":""},null,{"$f":"IFERROR(INDEX(Aktivita,SMALL(IF(Cíl=$F$2,ROW(Aktivita)-MIN(ROW(Aktivita))+1),ROWS($B$3:B63)))&CHAR(10),\"\")","v":""},null,{"$f":"IFERROR(INDEX(Aktivita,SMALL(IF(Cíl=$H$2,ROW(Aktivita)-MIN(ROW(Aktivita))+1),ROWS($B$3:B63)))&CHAR(10),\"\")","v":""}]
[null,{"$f":"IFERROR(INDEX(Aktivita,SMALL(IF(Cíl=$B$2,ROW(Aktivita)-MIN(ROW(Aktivita))+1),ROWS($B$3:B64)))&\" \"&CHAR(10)&(INDEX(Výsledek,SMALL(IF(Cíl=$B$2,ROW(Výsledek)-MIN(ROW(Výsledek))+1),ROWS($B$3:B64))))&CHAR(10),\"\")","v":""},null,{"$f":"IFERROR(INDEX(Aktivita,SMALL(IF(Cíl=$D$2,ROW(Aktivita)-MIN(ROW(Aktivita))+1),ROWS($B$3:B64)))&CHAR(10),\"\")","v":""},null,{"$f":"IFERROR(INDEX(Aktivita,SMALL(IF(Cíl=$F$2,ROW(Aktivita)-MIN(ROW(Aktivita))+1),ROWS($B$3:B64)))&CHAR(10),\"\")","v":""},null,{"$f":"IFERROR(INDEX(Aktivita,SMALL(IF(Cíl=$H$2,ROW(Aktivita)-MIN(ROW(Aktivita))+1),ROWS($B$3:B64)))&CHAR(10),\"\")","v":""}]
[null,{"$f":"IFERROR(INDEX(Aktivita,SMALL(IF(Cíl=$B$2,ROW(Aktivita)-MIN(ROW(Aktivita))+1),ROWS($B$3:B65)))&\" \"&CHAR(10)&(INDEX(Výsledek,SMALL(IF(Cíl=$B$2,ROW(Výsledek)-MIN(ROW(Výsledek))+1),ROWS($B$3:B65))))&CHAR(10),\"\")","v":""},null,{"$f":"IFERROR(INDEX(Aktivita,SMALL(IF(Cíl=$D$2,ROW(Aktivita)-MIN(ROW(Aktivita))+1),ROWS($B$3:B65)))&CHAR(10),\"\")","v":""},null,{"$f":"IFERROR(INDEX(Aktivita,SMALL(IF(Cíl=$F$2,ROW(Aktivita)-MIN(ROW(Aktivita))+1),ROWS($B$3:B65)))&CHAR(10),\"\")","v":""},null,{"$f":"IFERROR(INDEX(Aktivita,SMALL(IF(Cíl=$H$2,ROW(Aktivita)-MIN(ROW(Aktivita))+1),ROWS($B$3:B65)))&CHAR(10),\"\")","v":""}]
[null,{"$f":"IFERROR(INDEX(Aktivita,SMALL(IF(Cíl=$B$2,ROW(Aktivita)-MIN(ROW(Aktivita))+1),ROWS($B$3:B66)))&\" \"&CHAR(10)&(INDEX(Výsledek,SMALL(IF(Cíl=$B$2,ROW(Výsledek)-MIN(ROW(Výsledek))+1),ROWS($B$3:B66))))&CHAR(10),\"\")","v":""},null,{"$f":"IFERROR(INDEX(Aktivita,SMALL(IF(Cíl=$D$2,ROW(Aktivita)-MIN(ROW(Aktivita))+1),ROWS($B$3:B66)))&CHAR(10),\"\")","v":""},null,{"$f":"IFERROR(INDEX(Aktivita,SMALL(IF(Cíl=$F$2,ROW(Aktivita)-MIN(ROW(Aktivita))+1),ROWS($B$3:B66)))&CHAR(10),\"\")","v":""},null,{"$f":"IFERROR(INDEX(Aktivita,SMALL(IF(Cíl=$H$2,ROW(Aktivita)-MIN(ROW(Aktivita))+1),ROWS($B$3:B66)))&CHAR(10),\"\")","v":""}]
[null,{"$f":"IFERROR(INDEX(Aktivita,SMALL(IF(Cíl=$B$2,ROW(Aktivita)-MIN(ROW(Aktivita))+1),ROWS($B$3:B67)))&\" \"&CHAR(10)&(INDEX(Výsledek,SMALL(IF(Cíl=$B$2,ROW(Výsledek)-MIN(ROW(Výsledek))+1),ROWS($B$3:B67))))&CHAR(10),\"\")","v":""},null,{"$f":"IFERROR(INDEX(Aktivita,SMALL(IF(Cíl=$D$2,ROW(Aktivita)-MIN(ROW(Aktivita))+1),ROWS($B$3:B67)))&CHAR(10),\"\")","v":""},null,{"$f":"IFERROR(INDEX(Aktivita,SMALL(IF(Cíl=$F$2,ROW(Aktivita)-MIN(ROW(Aktivita))+1),ROWS($B$3:B67)))&CHAR(10),\"\")","v":""},null,{"$f":"IFERROR(INDEX(Aktivita,SMALL(IF(Cíl=$H$2,ROW(Aktivita)-MIN(ROW(Aktivita))+1),ROWS($B$3:B67)))&CHAR(10),\"\")","v":""}]
[null,{"$f":"IFERROR(INDEX(Aktivita,SMALL(IF(Cíl=$B$2,ROW(Aktivita)-MIN(ROW(Aktivita))+1),ROWS($B$3:B68)))&\" \"&CHAR(10)&(INDEX(Výsledek,SMALL(IF(Cíl=$B$2,ROW(Výsledek)-MIN(ROW(Výsledek))+1),ROWS($B$3:B68))))&CHAR(10),\"\")","v":""},null,{"$f":"IFERROR(INDEX(Aktivita,SMALL(IF(Cíl=$D$2,ROW(Aktivita)-MIN(ROW(Aktivita))+1),ROWS($B$3:B68)))&CHAR(10),\"\")","v":""},null,{"$f":"IFERROR(INDEX(Aktivita,SMALL(IF(Cíl=$F$2,ROW(Aktivita)-MIN(ROW(Aktivita))+1),ROWS($B$3:B68)))&CHAR(10),\"\")","v":""},null,{"$f":"IFERROR(INDEX(Aktivita,SMALL(IF(Cíl=$H$2,ROW(Aktivita)-MIN(ROW(Aktivita))+1),ROWS($B$3:B68)))&CHAR(10),\"\")","v":""}]
[null,{"$f":"IFERROR(INDEX(Aktivita,SMALL(IF(Cíl=$B$2,ROW(Aktivita)-MIN(ROW(Aktivita))+1),ROWS($B$3:B69)))&\" \"&CHAR(10)&(INDEX(Výsledek,SMALL(IF(Cíl=$B$2,ROW(Výsledek)-MIN(ROW(Výsledek))+1),ROWS($B$3:B69))))&CHAR(10),\"\")","v":""},null,{"$f":"IFERROR(INDEX(Aktivita,SMALL(IF(Cíl=$D$2,ROW(Aktivita)-MIN(ROW(Aktivita))+1),ROWS($B$3:B69)))&CHAR(10),\"\")","v":""},null,{"$f":"IFERROR(INDEX(Aktivita,SMALL(IF(Cíl=$F$2,ROW(Aktivita)-MIN(ROW(Aktivita))+1),ROWS($B$3:B69)))&CHAR(10),\"\")","v":""},null,{"$f":"IFERROR(INDEX(Aktivita,SMALL(IF(Cíl=$H$2,ROW(Aktivita)-MIN(ROW(Aktivita))+1),ROWS($B$3:B69)))&CHAR(10),\"\")","v":""}]
[null,{"$f":"IFERROR(INDEX(Aktivita,SMALL(IF(Cíl=$B$2,ROW(Aktivita)-MIN(ROW(Aktivita))+1),ROWS($B$3:B70)))&\" \"&CHAR(10)&(INDEX(Výsledek,SMALL(IF(Cíl=$B$2,ROW(Výsledek)-MIN(ROW(Výsledek))+1),ROWS($B$3:B70))))&CHAR(10),\"\")","v":""},null,{"$f":"IFERROR(INDEX(Aktivita,SMALL(IF(Cíl=$D$2,ROW(Aktivita)-MIN(ROW(Aktivita))+1),ROWS($B$3:B70)))&CHAR(10),\"\")","v":""},null,{"$f":"IFERROR(INDEX(Aktivita,SMALL(IF(Cíl=$F$2,ROW(Aktivita)-MIN(ROW(Aktivita))+1),ROWS($B$3:B70)))&CHAR(10),\"\")","v":""},null,{"$f":"IFERROR(INDEX(Aktivita,SMALL(IF(Cíl=$H$2,ROW(Aktivita)-MIN(ROW(Aktivita))+1),ROWS($B$3:B70)))&CHAR(10),\"\")","v":""}]
[null,{"$f":"IFERROR(INDEX(Aktivita,SMALL(IF(Cíl=$B$2,ROW(Aktivita)-MIN(ROW(Aktivita))+1),ROWS($B$3:B71)))&\" \"&CHAR(10)&(INDEX(Výsledek,SMALL(IF(Cíl=$B$2,ROW(Výsledek)-MIN(ROW(Výsledek))+1),ROWS($B$3:B71))))&CHAR(10),\"\")","v":""},null,{"$f":"IFERROR(INDEX(Aktivita,SMALL(IF(Cíl=$D$2,ROW(Aktivita)-MIN(ROW(Aktivita))+1),ROWS($B$3:B71)))&CHAR(10),\"\")","v":""},null,{"$f":"IFERROR(INDEX(Aktivita,SMALL(IF(Cíl=$F$2,ROW(Aktivita)-MIN(ROW(Aktivita))+1),ROWS($B$3:B71)))&CHAR(10),\"\")","v":""},null,{"$f":"IFERROR(INDEX(Aktivita,SMALL(IF(Cíl=$H$2,ROW(Aktivita)-MIN(ROW(Aktivita))+1),ROWS($B$3:B71)))&CHAR(10),\"\")","v":""}]
[null,{"$f":"IFERROR(INDEX(Aktivita,SMALL(IF(Cíl=$B$2,ROW(Aktivita)-MIN(ROW(Aktivita))+1),ROWS($B$3:B72)))&\" \"&CHAR(10)&(INDEX(Výsledek,SMALL(IF(Cíl=$B$2,ROW(Výsledek)-MIN(ROW(Výsledek))+1),ROWS($B$3:B72))))&CHAR(10),\"\")","v":""},null,{"$f":"IFERROR(INDEX(Aktivita,SMALL(IF(Cíl=$D$2,ROW(Aktivita)-MIN(ROW(Aktivita))+1),ROWS($B$3:B72)))&CHAR(10),\"\")","v":""},null,{"$f":"IFERROR(INDEX(Aktivita,SMALL(IF(Cíl=$F$2,ROW(Aktivita)-MIN(ROW(Aktivita))+1),ROWS($B$3:B72)))&CHAR(10),\"\")","v":""},null,{"$f":"IFERROR(INDEX(Aktivita,SMALL(IF(Cíl=$H$2,ROW(Aktivita)-MIN(ROW(Aktivita))+1),ROWS($B$3:B72)))&CHAR(10),\"\")","v":""}]
[null,{"$f":"IFERROR(INDEX(Aktivita,SMALL(IF(Cíl=$B$2,ROW(Aktivita)-MIN(ROW(Aktivita))+1),ROWS($B$3:B73)))&\" \"&CHAR(10)&(INDEX(Výsledek,SMALL(IF(Cíl=$B$2,ROW(Výsledek)-MIN(ROW(Výsledek))+1),ROWS($B$3:B73))))&CHAR(10),\"\")","v":""},null,{"$f":"IFERROR(INDEX(Aktivita,SMALL(IF(Cíl=$D$2,ROW(Aktivita)-MIN(ROW(Aktivita))+1),ROWS($B$3:B73)))&CHAR(10),\"\")","v":""},null,{"$f":"IFERROR(INDEX(Aktivita,SMALL(IF(Cíl=$F$2,ROW(Aktivita)-MIN(ROW(Aktivita))+1),ROWS($B$3:B73)))&CHAR(10),\"\")","v":""},null,{"$f":"IFERROR(INDEX(Aktivita,SMALL(IF(Cíl=$H$2,ROW(Aktivita)-MIN(ROW(Aktivita))+1),ROWS($B$3:B73)))&CHAR(10),\"\")","v":""}]
[null,{"$f":"IFERROR(INDEX(Aktivita,SMALL(IF(Cíl=$B$2,ROW(Aktivita)-MIN(ROW(Aktivita))+1),ROWS($B$3:B74)))&\" \"&CHAR(10)&(INDEX(Výsledek,SMALL(IF(Cíl=$B$2,ROW(Výsledek)-MIN(ROW(Výsledek))+1),ROWS($B$3:B74))))&CHAR(10),\"\")","v":""},null,{"$f":"IFERROR(INDEX(Aktivita,SMALL(IF(Cíl=$D$2,ROW(Aktivita)-MIN(ROW(Aktivita))+1),ROWS($B$3:B74)))&CHAR(10),\"\")","v":""},null,{"$f":"IFERROR(INDEX(Aktivita,SMALL(IF(Cíl=$F$2,ROW(Aktivita)-MIN(ROW(Aktivita))+1),ROWS($B$3:B74)))&CHAR(10),\"\")","v":""},null,{"$f":"IFERROR(INDEX(Aktivita,SMALL(IF(Cíl=$H$2,ROW(Aktivita)-MIN(ROW(Aktivita))+1),ROWS($B$3:B74)))&CHAR(10),\"\")","v":""}]
[null,{"$f":"IFERROR(INDEX(Aktivita,SMALL(IF(Cíl=$B$2,ROW(Aktivita)-MIN(ROW(Aktivita))+1),ROWS($B$3:B75)))&\" \"&CHAR(10)&(INDEX(Výsledek,SMALL(IF(Cíl=$B$2,ROW(Výsledek)-MIN(ROW(Výsledek))+1),ROWS($B$3:B75))))&CHAR(10),\"\")","v":""},null,{"$f":"IFERROR(INDEX(Aktivita,SMALL(IF(Cíl=$D$2,ROW(Aktivita)-MIN(ROW(Aktivita))+1),ROWS($B$3:B75)))&CHAR(10),\"\")","v":""},null,{"$f":"IFERROR(INDEX(Aktivita,SMALL(IF(Cíl=$F$2,ROW(Aktivita)-MIN(ROW(Aktivita))+1),ROWS($B$3:B75)))&CHAR(10),\"\")","v":""},null,{"$f":"IFERROR(INDEX(Aktivita,SMALL(IF(Cíl=$H$2,ROW(Aktivita)-MIN(ROW(Aktivita))+1),ROWS($B$3:B75)))&CHAR(10),\"\")","v":""}]
[null,{"$f":"IFERROR(INDEX(Aktivita,SMALL(IF(Cíl=$B$2,ROW(Aktivita)-MIN(ROW(Aktivita))+1),ROWS($B$3:B76)))&\" \"&CHAR(10)&(INDEX(Výsledek,SMALL(IF(Cíl=$B$2,ROW(Výsledek)-MIN(ROW(Výsledek))+1),ROWS($B$3:B76))))&CHAR(10),\"\")","v":""},null,{"$f":"IFERROR(INDEX(Aktivita,SMALL(IF(Cíl=$D$2,ROW(Aktivita)-MIN(ROW(Aktivita))+1),ROWS($B$3:B76)))&CHAR(10),\"\")","v":""},null,{"$f":"IFERROR(INDEX(Aktivita,SMALL(IF(Cíl=$F$2,ROW(Aktivita)-MIN(ROW(Aktivita))+1),ROWS($B$3:B76)))&CHAR(10),\"\")","v":""},null,{"$f":"IFERROR(INDEX(Aktivita,SMALL(IF(Cíl=$H$2,ROW(Aktivita)-MIN(ROW(Aktivita))+1),ROWS($B$3:B76)))&CHAR(10),\"\")","v":""}]
[null,{"$f":"IFERROR(INDEX(Aktivita,SMALL(IF(Cíl=$B$2,ROW(Aktivita)-MIN(ROW(Aktivita))+1),ROWS($B$3:B77)))&\" \"&CHAR(10)&(INDEX(Výsledek,SMALL(IF(Cíl=$B$2,ROW(Výsledek)-MIN(ROW(Výsledek))+1),ROWS($B$3:B77))))&CHAR(10),\"\")","v":""},null,{"$f":"IFERROR(INDEX(Aktivita,SMALL(IF(Cíl=$D$2,ROW(Aktivita)-MIN(ROW(Aktivita))+1),ROWS($B$3:B77)))&CHAR(10),\"\")","v":""},null,{"$f":"IFERROR(INDEX(Aktivita,SMALL(IF(Cíl=$F$2,ROW(Aktivita)-MIN(ROW(Aktivita))+1),ROWS($B$3:B77)))&CHAR(10),\"\")","v":""},null,{"$f":"IFERROR(INDEX(Aktivita,SMALL(IF(Cíl=$H$2,ROW(Aktivita)-MIN(ROW(Aktivita))+1),ROWS($B$3:B77)))&CHAR(10),\"\")","v":""}]
[null,{"$f":"IFERROR(INDEX(Aktivita,SMALL(IF(Cíl=$B$2,ROW(Aktivita)-MIN(ROW(Aktivita))+1),ROWS($B$3:B78)))&\" \"&CHAR(10)&(INDEX(Výsledek,SMALL(IF(Cíl=$B$2,ROW(Výsledek)-MIN(ROW(Výsledek))+1),ROWS($B$3:B78))))&CHAR(10),\"\")","v":""},null,{"$f":"IFERROR(INDEX(Aktivita,SMALL(IF(Cíl=$D$2,ROW(Aktivita)-MIN(ROW(Aktivita))+1),ROWS($B$3:B78)))&CHAR(10),\"\")","v":""},null,{"$f":"IFERROR(INDEX(Aktivita,SMALL(IF(Cíl=$F$2,ROW(Aktivita)-MIN(ROW(Aktivita))+1),ROWS($B$3:B78)))&CHAR(10),\"\")","v":""},null,{"$f":"IFERROR(INDEX(Aktivita,SMALL(IF(Cíl=$H$2,ROW(Aktivita)-MIN(ROW(Aktivita))+1),ROWS($B$3:B78)))&CHAR(10),\"\")","v":""}]
[null,{"$f":"IFERROR(INDEX(Aktivita,SMALL(IF(Cíl=$B$2,ROW(Aktivita)-MIN(ROW(Aktivita))+1),ROWS($B$3:B79)))&\" \"&CHAR(10)&(INDEX(Výsledek,SMALL(IF(Cíl=$B$2,ROW(Výsledek)-MIN(ROW(Výsledek))+1),ROWS($B$3:B79))))&CHAR(10),\"\")","v":""},null,{"$f":"IFERROR(INDEX(Aktivita,SMALL(IF(Cíl=$D$2,ROW(Aktivita)-MIN(ROW(Aktivita))+1),ROWS($B$3:B79)))&CHAR(10),\"\")","v":""},null,{"$f":"IFERROR(INDEX(Aktivita,SMALL(IF(Cíl=$F$2,ROW(Aktivita)-MIN(ROW(Aktivita))+1),ROWS($B$3:B79)))&CHAR(10),\"\")","v":""},null,{"$f":"IFERROR(INDEX(Aktivita,SMALL(IF(Cíl=$H$2,ROW(Aktivita)-MIN(ROW(Aktivita))+1),ROWS($B$3:B79)))&CHAR(10),\"\")","v":""}]
[null,{"$f":"IFERROR(INDEX(Aktivita,SMALL(IF(Cíl=$B$2,ROW(Aktivita)-MIN(ROW(Aktivita))+1),ROWS($B$3:B80)))&\" \"&CHAR(10)&(INDEX(Výsledek,SMALL(IF(Cíl=$B$2,ROW(Výsledek)-MIN(ROW(Výsledek))+1),ROWS($B$3:B80))))&CHAR(10),\"\")","v":""},null,{"$f":"IFERROR(INDEX(Aktivita,SMALL(IF(Cíl=$D$2,ROW(Aktivita)-MIN(ROW(Aktivita))+1),ROWS($B$3:B80)))&CHAR(10),\"\")","v":""},null,{"$f":"IFERROR(INDEX(Aktivita,SMALL(IF(Cíl=$F$2,ROW(Aktivita)-MIN(ROW(Aktivita))+1),ROWS($B$3:B80)))&CHAR(10),\"\")","v":""},null,{"$f":"IFERROR(INDEX(Aktivita,SMALL(IF(Cíl=$H$2,ROW(Aktivita)-MIN(ROW(Aktivita))+1),ROWS($B$3:B80)))&CHAR(10),\"\")","v":""}]
[null,{"$f":"IFERROR(INDEX(Aktivita,SMALL(IF(Cíl=$B$2,ROW(Aktivita)-MIN(ROW(Aktivita))+1),ROWS($B$3:B81)))&\" \"&CHAR(10)&(INDEX(Výsledek,SMALL(IF(Cíl=$B$2,ROW(Výsledek)-MIN(ROW(Výsledek))+1),ROWS($B$3:B81))))&CHAR(10),\"\")","v":""},null,{"$f":"IFERROR(INDEX(Aktivita,SMALL(IF(Cíl=$D$2,ROW(Aktivita)-MIN(ROW(Aktivita))+1),ROWS($B$3:B81)))&CHAR(10),\"\")","v":""},null,{"$f":"IFERROR(INDEX(Aktivita,SMALL(IF(Cíl=$F$2,ROW(Aktivita)-MIN(ROW(Aktivita))+1),ROWS($B$3:B81)))&CHAR(10),\"\")","v":""},null,{"$f":"IFERROR(INDEX(Aktivita,SMALL(IF(Cíl=$H$2,ROW(Aktivita)-MIN(ROW(Aktivita))+1),ROWS($B$3:B81)))&CHAR(10),\"\")","v":""}]
[null,{"$f":"IFERROR(INDEX(Aktivita,SMALL(IF(Cíl=$B$2,ROW(Aktivita)-MIN(ROW(Aktivita))+1),ROWS($B$3:B82)))&\" \"&CHAR(10)&(INDEX(Výsledek,SMALL(IF(Cíl=$B$2,ROW(Výsledek)-MIN(ROW(Výsledek))+1),ROWS($B$3:B82))))&CHAR(10),\"\")","v":""},null,{"$f":"IFERROR(INDEX(Aktivita,SMALL(IF(Cíl=$D$2,ROW(Aktivita)-MIN(ROW(Aktivita))+1),ROWS($B$3:B82)))&CHAR(10),\"\")","v":""},null,{"$f":"IFERROR(INDEX(Aktivita,SMALL(IF(Cíl=$F$2,ROW(Aktivita)-MIN(ROW(Aktivita))+1),ROWS($B$3:B82)))&CHAR(10),\"\")","v":""},null,{"$f":"IFERROR(INDEX(Aktivita,SMALL(IF(Cíl=$H$2,ROW(Aktivita)-MIN(ROW(Aktivita))+1),ROWS($B$3:B82)))&CHAR(10),\"\")","v":""}]
[null,{"$f":"IFERROR(INDEX(Aktivita,SMALL(IF(Cíl=$B$2,ROW(Aktivita)-MIN(ROW(Aktivita))+1),ROWS($B$3:B83)))&\" \"&CHAR(10)&(INDEX(Výsledek,SMALL(IF(Cíl=$B$2,ROW(Výsledek)-MIN(ROW(Výsledek))+1),ROWS($B$3:B83))))&CHAR(10),\"\")","v":""},null,{"$f":"IFERROR(INDEX(Aktivita,SMALL(IF(Cíl=$D$2,ROW(Aktivita)-MIN(ROW(Aktivita))+1),ROWS($B$3:B83)))&CHAR(10),\"\")","v":""},null,{"$f":"IFERROR(INDEX(Aktivita,SMALL(IF(Cíl=$F$2,ROW(Aktivita)-MIN(ROW(Aktivita))+1),ROWS($B$3:B83)))&CHAR(10),\"\")","v":""},null,{"$f":"IFERROR(INDEX(Aktivita,SMALL(IF(Cíl=$H$2,ROW(Aktivita)-MIN(ROW(Aktivita))+1),ROWS($B$3:B83)))&CHAR(10),\"\")","v":""}]
[null,{"$f":"IFERROR(INDEX(Aktivita,SMALL(IF(Cíl=$B$2,ROW(Aktivita)-MIN(ROW(Aktivita))+1),ROWS($B$3:B84)))&\" \"&CHAR(10)&(INDEX(Výsledek,SMALL(IF(Cíl=$B$2,ROW(Výsledek)-MIN(ROW(Výsledek))+1),ROWS($B$3:B84))))&CHAR(10),\"\")","v":""},null,{"$f":"IFERROR(INDEX(Aktivita,SMALL(IF(Cíl=$D$2,ROW(Aktivita)-MIN(ROW(Aktivita))+1),ROWS($B$3:B84)))&CHAR(10),\"\")","v":""},null,{"$f":"IFERROR(INDEX(Aktivita,SMALL(IF(Cíl=$F$2,ROW(Aktivita)-MIN(ROW(Aktivita))+1),ROWS($B$3:B84)))&CHAR(10),\"\")","v":""},null,{"$f":"IFERROR(INDEX(Aktivita,SMALL(IF(Cíl=$H$2,ROW(Aktivita)-MIN(ROW(Aktivita))+1),ROWS($B$3:B84)))&CHAR(10),\"\")","v":""}]
[null,{"$f":"IFERROR(INDEX(Aktivita,SMALL(IF(Cíl=$B$2,ROW(Aktivita)-MIN(ROW(Aktivita))+1),ROWS($B$3:B85)))&\" \"&CHAR(10)&(INDEX(Výsledek,SMALL(IF(Cíl=$B$2,ROW(Výsledek)-MIN(ROW(Výsledek))+1),ROWS($B$3:B85))))&CHAR(10),\"\")","v":""},null,{"$f":"IFERROR(INDEX(Aktivita,SMALL(IF(Cíl=$D$2,ROW(Aktivita)-MIN(ROW(Aktivita))+1),ROWS($B$3:B85)))&CHAR(10),\"\")","v":""},null,{"$f":"IFERROR(INDEX(Aktivita,SMALL(IF(Cíl=$F$2,ROW(Aktivita)-MIN(ROW(Aktivita))+1),ROWS($B$3:B85)))&CHAR(10),\"\")","v":""},null,{"$f":"IFERROR(INDEX(Aktivita,SMALL(IF(Cíl=$H$2,ROW(Aktivita)-MIN(ROW(Aktivita))+1),ROWS($B$3:B85)))&CHAR(10),\"\")","v":""}]
[null,{"$f":"IFERROR(INDEX(Aktivita,SMALL(IF(Cíl=$B$2,ROW(Aktivita)-MIN(ROW(Aktivita))+1),ROWS($B$3:B86)))&\" \"&CHAR(10)&(INDEX(Výsledek,SMALL(IF(Cíl=$B$2,ROW(Výsledek)-MIN(ROW(Výsledek))+1),ROWS($B$3:B86))))&CHAR(10),\"\")","v":""},null,{"$f":"IFERROR(INDEX(Aktivita,SMALL(IF(Cíl=$D$2,ROW(Aktivita)-MIN(ROW(Aktivita))+1),ROWS($B$3:B86)))&CHAR(10),\"\")","v":""},null,{"$f":"IFERROR(INDEX(Aktivita,SMALL(IF(Cíl=$F$2,ROW(Aktivita)-MIN(ROW(Aktivita))+1),ROWS($B$3:B86)))&CHAR(10),\"\")","v":""},null,{"$f":"IFERROR(INDEX(Aktivita,SMALL(IF(Cíl=$H$2,ROW(Aktivita)-MIN(ROW(Aktivita))+1),ROWS($B$3:B86)))&CHAR(10),\"\")","v":""}]
[null,{"$f":"IFERROR(INDEX(Aktivita,SMALL(IF(Cíl=$B$2,ROW(Aktivita)-MIN(ROW(Aktivita))+1),ROWS($B$3:B87)))&\" \"&CHAR(10)&(INDEX(Výsledek,SMALL(IF(Cíl=$B$2,ROW(Výsledek)-MIN(ROW(Výsledek))+1),ROWS($B$3:B87))))&CHAR(10),\"\")","v":""},null,{"$f":"IFERROR(INDEX(Aktivita,SMALL(IF(Cíl=$D$2,ROW(Aktivita)-MIN(ROW(Aktivita))+1),ROWS($B$3:B87)))&CHAR(10),\"\")","v":""},null,{"$f":"IFERROR(INDEX(Aktivita,SMALL(IF(Cíl=$F$2,ROW(Aktivita)-MIN(ROW(Aktivita))+1),ROWS($B$3:B87)))&CHAR(10),\"\")","v":""},null,{"$f":"IFERROR(INDEX(Aktivita,SMALL(IF(Cíl=$H$2,ROW(Aktivita)-MIN(ROW(Aktivita))+1),ROWS($B$3:B87)))&CHAR(10),\"\")","v":""}]
[null,{"$f":"IFERROR(INDEX(Aktivita,SMALL(IF(Cíl=$B$2,ROW(Aktivita)-MIN(ROW(Aktivita))+1),ROWS($B$3:B88)))&\" \"&CHAR(10)&(INDEX(Výsledek,SMALL(IF(Cíl=$B$2,ROW(Výsledek)-MIN(ROW(Výsledek))+1),ROWS($B$3:B88))))&CHAR(10),\"\")","v":""},null,{"$f":"IFERROR(INDEX(Aktivita,SMALL(IF(Cíl=$D$2,ROW(Aktivita)-MIN(ROW(Aktivita))+1),ROWS($B$3:B88)))&CHAR(10),\"\")","v":""},null,{"$f":"IFERROR(INDEX(Aktivita,SMALL(IF(Cíl=$F$2,ROW(Aktivita)-MIN(ROW(Aktivita))+1),ROWS($B$3:B88)))&CHAR(10),\"\")","v":""},null,{"$f":"IFERROR(INDEX(Aktivita,SMALL(IF(Cíl=$H$2,ROW(Aktivita)-MIN(ROW(Aktivita))+1),ROWS($B$3:B88)))&CHAR(10),\"\")","v":""}]
[null,{"$f":"IFERROR(INDEX(Aktivita,SMALL(IF(Cíl=$B$2,ROW(Aktivita)-MIN(ROW(Aktivita))+1),ROWS($B$3:B89)))&\" \"&CHAR(10)&(INDEX(Výsledek,SMALL(IF(Cíl=$B$2,ROW(Výsledek)-MIN(ROW(Výsledek))+1),ROWS($B$3:B89))))&CHAR(10),\"\")","v":""},null,{"$f":"IFERROR(INDEX(Aktivita,SMALL(IF(Cíl=$D$2,ROW(Aktivita)-MIN(ROW(Aktivita))+1),ROWS($B$3:B89)))&CHAR(10),\"\")","v":""},null,{"$f":"IFERROR(INDEX(Aktivita,SMALL(IF(Cíl=$F$2,ROW(Aktivita)-MIN(ROW(Aktivita))+1),ROWS($B$3:B89)))&CHAR(10),\"\")","v":""},null,{"$f":"IFERROR(INDEX(Aktivita,SMALL(IF(Cíl=$H$2,ROW(Aktivita)-MIN(ROW(Aktivita))+1),ROWS($B$3:B89)))&CHAR(10),\"\")","v":""}]
[null,{"$f":"IFERROR(INDEX(Aktivita,SMALL(IF(Cíl=$B$2,ROW(Aktivita)-MIN(ROW(Aktivita))+1),ROWS($B$3:B90)))&\" \"&CHAR(10)&(INDEX(Výsledek,SMALL(IF(Cíl=$B$2,ROW(Výsledek)-MIN(ROW(Výsledek))+1),ROWS($B$3:B90))))&CHAR(10),\"\")","v":""},null,{"$f":"IFERROR(INDEX(Aktivita,SMALL(IF(Cíl=$D$2,ROW(Aktivita)-MIN(ROW(Aktivita))+1),ROWS($B$3:B90)))&CHAR(10),\"\")","v":""},null,{"$f":"IFERROR(INDEX(Aktivita,SMALL(IF(Cíl=$F$2,ROW(Aktivita)-MIN(ROW(Aktivita))+1),ROWS($B$3:B90)))&CHAR(10),\"\")","v":""},null,{"$f":"IFERROR(INDEX(Aktivita,SMALL(IF(Cíl=$H$2,ROW(Aktivita)-MIN(ROW(Aktivita))+1),ROWS($B$3:B90)))&CHAR(10),\"\")","v":""}]
[null,{"$f":"IFERROR(INDEX(Aktivita,SMALL(IF(Cíl=$B$2,ROW(Aktivita)-MIN(ROW(Aktivita))+1),ROWS($B$3:B91)))&\" \"&CHAR(10)&(INDEX(Výsledek,SMALL(IF(Cíl=$B$2,ROW(Výsledek)-MIN(ROW(Výsledek))+1),ROWS($B$3:B91))))&CHAR(10),\"\")","v":""},null,{"$f":"IFERROR(INDEX(Aktivita,SMALL(IF(Cíl=$D$2,ROW(Aktivita)-MIN(ROW(Aktivita))+1),ROWS($B$3:B91)))&CHAR(10),\"\")","v":""},null,{"$f":"IFERROR(INDEX(Aktivita,SMALL(IF(Cíl=$F$2,ROW(Aktivita)-MIN(ROW(Aktivita))+1),ROWS($B$3:B91)))&CHAR(10),\"\")","v":""},null,{"$f":"IFERROR(INDEX(Aktivita,SMALL(IF(Cíl=$H$2,ROW(Aktivita)-MIN(ROW(Aktivita))+1),ROWS($B$3:B91)))&CHAR(10),\"\")","v":""}]
[null,{"$f":"IFERROR(INDEX(Aktivita,SMALL(IF(Cíl=$B$2,ROW(Aktivita)-MIN(ROW(Aktivita))+1),ROWS($B$3:B92)))&\" \"&CHAR(10)&(INDEX(Výsledek,SMALL(IF(Cíl=$B$2,ROW(Výsledek)-MIN(ROW(Výsledek))+1),ROWS($B$3:B92))))&CHAR(10),\"\")","v":""},null,{"$f":"IFERROR(INDEX(Aktivita,SMALL(IF(Cíl=$D$2,ROW(Aktivita)-MIN(ROW(Aktivita))+1),ROWS($B$3:B92)))&CHAR(10),\"\")","v":""},null,{"$f":"IFERROR(INDEX(Aktivita,SMALL(IF(Cíl=$F$2,ROW(Aktivita)-MIN(ROW(Aktivita))+1),ROWS($B$3:B92)))&CHAR(10),\"\")","v":""},null,{"$f":"IFERROR(INDEX(Aktivita,SMALL(IF(Cíl=$H$2,ROW(Aktivita)-MIN(ROW(Aktivita))+1),ROWS($B$3:B92)))&CHAR(10),\"\")","v":""}]
[null,{"$f":"IFERROR(INDEX(Aktivita,SMALL(IF(Cíl=$B$2,ROW(Aktivita)-MIN(ROW(Aktivita))+1),ROWS($B$3:B93)))&\" \"&CHAR(10)&(INDEX(Výsledek,SMALL(IF(Cíl=$B$2,ROW(Výsledek)-MIN(ROW(Výsledek))+1),ROWS($B$3:B93))))&CHAR(10),\"\")","v":""},null,{"$f":"IFERROR(INDEX(Aktivita,SMALL(IF(Cíl=$D$2,ROW(Aktivita)-MIN(ROW(Aktivita))+1),ROWS($B$3:B93)))&CHAR(10),\"\")","v":""},null,{"$f":"IFERROR(INDEX(Aktivita,SMALL(IF(Cíl=$F$2,ROW(Aktivita)-MIN(ROW(Aktivita))+1),ROWS($B$3:B93)))&CHAR(10),\"\")","v":""},null,{"$f":"IFERROR(INDEX(Aktivita,SMALL(IF(Cíl=$H$2,ROW(Aktivita)-MIN(ROW(Aktivita))+1),ROWS($B$3:B93)))&CHAR(10),\"\")","v":""}]
[null,{"$f":"IFERROR(INDEX(Aktivita,SMALL(IF(Cíl=$B$2,ROW(Aktivita)-MIN(ROW(Aktivita))+1),ROWS($B$3:B94)))&\" \"&CHAR(10)&(INDEX(Výsledek,SMALL(IF(Cíl=$B$2,ROW(Výsledek)-MIN(ROW(Výsledek))+1),ROWS($B$3:B94))))&CHAR(10),\"\")","v":""},null,{"$f":"IFERROR(INDEX(Aktivita,SMALL(IF(Cíl=$D$2,ROW(Aktivita)-MIN(ROW(Aktivita))+1),ROWS($B$3:B94)))&CHAR(10),\"\")","v":""},null,{"$f":"IFERROR(INDEX(Aktivita,SMALL(IF(Cíl=$F$2,ROW(Aktivita)-MIN(ROW(Aktivita))+1),ROWS($B$3:B94)))&CHAR(10),\"\")","v":""},null,{"$f":"IFERROR(INDEX(Aktivita,SMALL(IF(Cíl=$H$2,ROW(Aktivita)-MIN(ROW(Aktivita))+1),ROWS($B$3:B94)))&CHAR(10),\"\")","v":""}]
[null,{"$f":"IFERROR(INDEX(Aktivita,SMALL(IF(Cíl=$B$2,ROW(Aktivita)-MIN(ROW(Aktivita))+1),ROWS($B$3:B95)))&\" \"&CHAR(10)&(INDEX(Výsledek,SMALL(IF(Cíl=$B$2,ROW(Výsledek)-MIN(ROW(Výsledek))+1),ROWS($B$3:B95))))&CHAR(10),\"\")","v":""},null,{"$f":"IFERROR(INDEX(Aktivita,SMALL(IF(Cíl=$D$2,ROW(Aktivita)-MIN(ROW(Aktivita))+1),ROWS($B$3:B95)))&CHAR(10),\"\")","v":""},null,{"$f":"IFERROR(INDEX(Aktivita,SMALL(IF(Cíl=$F$2,ROW(Aktivita)-MIN(ROW(Aktivita))+1),ROWS($B$3:B95)))&CHAR(10),\"\")","v":""},null,{"$f":"IFERROR(INDEX(Aktivita,SMALL(IF(Cíl=$H$2,ROW(Aktivita)-MIN(ROW(Aktivita))+1),ROWS($B$3:B95)))&CHAR(10),\"\")","v":""}]
[null,{"$f":"IFERROR(INDEX(Aktivita,SMALL(IF(Cíl=$B$2,ROW(Aktivita)-MIN(ROW(Aktivita))+1),ROWS($B$3:B96)))&\" \"&CHAR(10)&(INDEX(Výsledek,SMALL(IF(Cíl=$B$2,ROW(Výsledek)-MIN(ROW(Výsledek))+1),ROWS($B$3:B96))))&CHAR(10),\"\")","v":""},null,{"$f":"IFERROR(INDEX(Aktivita,SMALL(IF(Cíl=$D$2,ROW(Aktivita)-MIN(ROW(Aktivita))+1),ROWS($B$3:B96)))&CHAR(10),\"\")","v":""},null,{"$f":"IFERROR(INDEX(Aktivita,SMALL(IF(Cíl=$F$2,ROW(Aktivita)-MIN(ROW(Aktivita))+1),ROWS($B$3:B96)))&CHAR(10),\"\")","v":""},null,{"$f":"IFERROR(INDEX(Aktivita,SMALL(IF(Cíl=$H$2,ROW(Aktivita)-MIN(ROW(Aktivita))+1),ROWS($B$3:B96)))&CHAR(10),\"\")","v":""}]
[null,{"$f":"IFERROR(INDEX(Aktivita,SMALL(IF(Cíl=$B$2,ROW(Aktivita)-MIN(ROW(Aktivita))+1),ROWS($B$3:B97)))&\" \"&CHAR(10)&(INDEX(Výsledek,SMALL(IF(Cíl=$B$2,ROW(Výsledek)-MIN(ROW(Výsledek))+1),ROWS($B$3:B97))))&CHAR(10),\"\")","v":""},null,{"$f":"IFERROR(INDEX(Aktivita,SMALL(IF(Cíl=$D$2,ROW(Aktivita)-MIN(ROW(Aktivita))+1),ROWS($B$3:B97)))&CHAR(10),\"\")","v":""},null,{"$f":"IFERROR(INDEX(Aktivita,SMALL(IF(Cíl=$F$2,ROW(Aktivita)-MIN(ROW(Aktivita))+1),ROWS($B$3:B97)))&CHAR(10),\"\")","v":""},null,{"$f":"IFERROR(INDEX(Aktivita,SMALL(IF(Cíl=$H$2,ROW(Aktivita)-MIN(ROW(Aktivita))+1),ROWS($B$3:B97)))&CHAR(10),\"\")","v":""}]
[null,{"$f":"IFERROR(INDEX(Aktivita,SMALL(IF(Cíl=$B$2,ROW(Aktivita)-MIN(ROW(Aktivita))+1),ROWS($B$3:B98)))&\" \"&CHAR(10)&(INDEX(Výsledek,SMALL(IF(Cíl=$B$2,ROW(Výsledek)-MIN(ROW(Výsledek))+1),ROWS($B$3:B98))))&CHAR(10),\"\")","v":""},null,{"$f":"IFERROR(INDEX(Aktivita,SMALL(IF(Cíl=$D$2,ROW(Aktivita)-MIN(ROW(Aktivita))+1),ROWS($B$3:B98)))&CHAR(10),\"\")","v":""},null,{"$f":"IFERROR(INDEX(Aktivita,SMALL(IF(Cíl=$F$2,ROW(Aktivita)-MIN(ROW(Aktivita))+1),ROWS($B$3:B98)))&CHAR(10),\"\")","v":""},null,{"$f":"IFERROR(INDEX(Aktivita,SMALL(IF(Cíl=$H$2,ROW(Aktivita)-MIN(ROW(Aktivita))+1),ROWS($B$3:B98)))&CHAR(10),\"\")","v":""}]
[null,{"$f":"IFERROR(INDEX(Aktivita,SMALL(IF(Cíl=$B$2,ROW(Aktivita)-MIN(ROW(Aktivita))+1),ROWS($B$3:B99)))&\" \"&CHAR(10)&(INDEX(Výsledek,SMALL(IF(Cíl=$B$2,ROW(Výsledek)-MIN(ROW(Výsledek))+1),ROWS($B$3:B99))))&CHAR(10),\"\")","v":""},null,{"$f":"IFERROR(INDEX(Aktivita,SMALL(IF(Cíl=$D$2,ROW(Aktivita)-MIN(ROW(Aktivita))+1),ROWS($B$3:B99)))&CHAR(10),\"\")","v":""},null,{"$f":"IFERROR(INDEX(Aktivita,SMALL(IF(Cíl=$F$2,ROW(Aktivita)-MIN(ROW(Aktivita))+1),ROWS($B$3:B99)))&CHAR(10),\"\")","v":""},null,{"$f":"IFERROR(INDEX(Aktivita,SMALL(IF(Cíl=$H$2,ROW(Aktivita)-MIN(ROW(Aktivita))+1),ROWS($B$3:B99)))&CHAR(10),\"\")","v":""}]
[null,{"$f":"IFERROR(INDEX(Aktivita,SMALL(IF(Cíl=$B$2,ROW(Aktivita)-MIN(ROW(Aktivita))+1),ROWS($B$3:B100)))&\" \"&CHAR(10)&(INDEX(Výsledek,SMALL(IF(Cíl=$B$2,ROW(Výsledek)-MIN(ROW(Výsledek))+1),ROWS($B$3:B100))))&CHAR(10),\"\")","v":""},null,{"$f":"IFERROR(INDEX(Aktivita,SMALL(IF(Cíl=$D$2,ROW(Aktivita)-MIN(ROW(Aktivita))+1),ROWS($B$3:B100)))&CHAR(10),\"\")","v":""},null,{"$f":"IFERROR(INDEX(Aktivita,SMALL(IF(Cíl=$F$2,ROW(Aktivita)-MIN(ROW(Aktivita))+1),ROWS($B$3:B100)))&CHAR(10),\"\")","v":""},null,{"$f":"IFERROR(INDEX(Aktivita,SMALL(IF(Cíl=$H$2,ROW(Aktivita)-MIN(ROW(Aktivita))+1),ROWS($B$3:B100)))&CHAR(10),\"\")","v":""}]

{"sheet":"Informace","index":2,"n_rows":6,"n_cols":1,"rows_kept":6}
["O tomto sešitu"]
["Pokyny pro čtečky obrazovky"]
["V tomto sešitu jsou 3 listy. \n\nData plánu\nAgilní plán\nInformace\n\nPokyny pro každý list najdete vždy ve sloupci A od buňky A1. Jsou napsané skrytým textem. Každý krok vás provede informacemi na daném řádku. Každý další krok pokračuje v buňkách A2, A3 a tak dále, pokud není výslovně uvedené něco jiného. Text pokynu by mohl například znít „Další pokyn najdete v buňce A6“. \n\nSkrytý text se nevytiskne.\n\nPokud chcete tyto pokyny z libovolného listu odebrat, stačí jednoduše odstranit sloupec A.\n"]
["O tomto sešitu"]
["Na listu Data plánu zadejte informace o milnících.  Tabulku seřaďte podle priority a pak podle milníku, aby se položky zobrazily ve sloupcích Dokončeno, Aktuální, Krátkodobé a Budoucí s klesající prioritou (položky s nejvyšší prioritu budou nahoře). Plán na listu Agilní plán se aktualizuje automaticky."]
["Toto je poslední pokyn na tomto listu."]